Workbook

Sheet Finish Times (2) (hidden)
A4: MUST | C4: FLEET 1
A5: BE | C5: FLEET 2
A6: IN ALPHA | C6: FLEET 3
A7: ORDER | C7: FLEET 4
F8: Finish Time
A9: BOAT NAME | B9: FLEET | C9: BOAT | D9: SAIL # | E9: SKIPPER | F9: MINUTES | G9: SECONDS
A10: Bandit | B10: 1 | C10: J/24 | D10: 2792 | E10: Cliborne
A11: Blunder Bus | B11: 1 | C11: J/24 | E11: Hardy
A12: Boogie Board | B12: 1 | C12: J/24 | D12: 1742 | E12: Maloney
A13: Catch 22 | B13: 1 | C13: J22 | D13: 826 | E13: Schiable
A14: Dark Horse | B14: 1 | C14: J/24 | D14: 1024 | E14: Forqurean
A15: Fox Trot | B15: 1 | C15: Colgate 26 | E15: Haddon
A16: Rascal | B16: 1 | C16: J/24 | D16: 3511 | E16: Phillip
A17: Time Warp | B17: 1 | C17: J/24 | D17: 1248 | E17: Sampson
A18: UDO | B18: 1 | C18: VX One | D18: 119 | E18: Gietl
A19: Destiny | B19: 2 | C19: Alerion 20 | D19: 6 | E19: Whitt
A20: Fools Game | B20: 2 | C20: Pearson 26 | D20: 1183 | E20: Hull
A21: Gotcha | B21: 2 | C21: S-2 6.7 | D21: 75 | E21: Theis
A22: Majical | B22: 2 | C22: Cal 25 | D22: 1687 | E22: Witten
A23: Severence | B23: 2 | C23: C&C 25 | D23: 14755 | E23: Evans
A24: Stoic | B24: 2 | C24: Harbor 20 | D24: 330 | E24: Hemler
A25: StressLess | B25: 2 | C25: Harbor 20 | D25: 212 | E25: Breckenridge
A26: Synergy | B26: 2 | C26: Harbor 20 | D26: 215 | E26: Miekina
A27: Circle Back | B27: 3 | C27: Catalina 22 | D27: C22 | E27: Nash
A28: Miss Virginia | B28: 3 | C28: Hunter 23.5 | D28: 1309 | E28: Perdue
A29: Norse Raider | B29: 3 | C29: Ericson 23 | D29: 23 | E29: Short
A30: Second Wind | B30: 3 | C30: Ericson 23 | D30: 470 | E30: Schraw
A31: Tundra Swan | B31: 3 | C31: Hunter 23 | D31: 1256 | E31: Gobble
A32: Alarming | B32: 4 | C32: S-2 9.2 | D32: 505 | E32: Oginz
A33: BILL | B33: 4 | C33: Hunter 356 | E33: Gillespie
A34: Felicite | B34: 4 | C34: S-2 27 IB | D34: 13 | E34: Johnson
A35: Got to Go | B35: 4 | C35: Catalina 30 | D35: 97 | E35: Forrester
A36: Janet Anne | B36: 4 | C36: Catalina 25 | D36: 5155 | E36: Tunnell
A37: Little Wing | B37: 4 | C37: Beneteau 29 | D37: 485 | E37: DeMestro
A38: More Mischief | B38: 4 | C38: Beneteau 285 | D38: 144 | E38: Gearhart
A39: Willaway | B39: 4 | C39: Columbia 29 | D39: 222 | E39: Conover

Sheet Fleet 1
A1: Control Z to run macro
A3: =#REF! ->  | B3: <-----Minutes after first start
A5: Blackwater Yacht Racing Association - Race Results - Fleet 1
D6: Date: | E6: 2019-09-07 | F6: 2019 Fall Series Race 1 | K6: RC: Warren Theis
A7: I & II W/L twice around, III & IV W/L Once around. Wind light and shifty 4 to 8 mph | P7: Time | Q7: Time | R7: Approx
G8: Handicap | I8: TCF | K8: Finish Time | M8: Calc(1) | N8: Adj.(2) | P8: Behind | Q8: Behind | R8: H'cap
A9: Skipper | B9: Boat Name | C9: Initials | D9: Guest? | E9: Boat | F9: Sail # | G9: Spin* | H9: Non-Spin* | I9: Spin* | J9: Non-Spin* | K9: Min. | L9: Sec. | M9: Min.dd | N9: Time | O9: Place | P9: Winner | Q9: Boat Ahead | R9: to win
A10: Cliborne | B10: Bandit | E10: J/24 | F10: 2792 | G10: 170 | H10: 185 | I10: 0.9345794393 | K10: 36 | L10: 25 | M10: 36.41666667 | N10: 34.03426791 | O10: 1 | P10: 0 | R10: 170
A11: Schaible | B11: Spider | E11: B25 | F11: 46 | G11: 136 | H11: 151 | I11: 0.9652509653 | K11: 44 | L11: 3 | M11: 44.05 | N11: 42.51930502 | O11: 3 | P11: 8.485037107 | Q11: 4.12366639 | R11: 394
A12: Forqurean | B12: Dark Horse | E12: J/24 | F12: 1024 | G12: 170 | H12: 185 | I12: 0.9345794393 | K12: 41 | L12: 5 | M12: 41.08333333 | N12: 38.39563863 | O12: 2 | P12: 4.361370717 | Q12: 4.361370717 | R12: 307
A13: Theis | B13: Gotcha | E13: S-2 6.7 | F13: 75 | G13: 208 | H13: 223 | I13: 0.9025270758 | O13: RC
A14: Evans | B14: Severence | E14: C&C 25 | F14: 14755 | G14: 217 | H14: 232 | I14: 0.8952551477
A15: Blackwater Yacht Racing Association - Race Results - Fleet 1
D16: Date: | E16: 2019-09-07 | F16: 2019 Fall Series Race 2 | K16: RC: Warren Theis
A17: I & II W/L twice around, III & IV W/L Once around. Wind light and shifty 4 to 8 mph | P17: Time | Q17: Time | R17: Approx
G18: Handicap | I18: TCF | K18: Finish Time | M18: Calc(1) | N18: Adj.(2) | P18: Behind | Q18: Behind | R18: H'cap
A19: Skipper | B19: Boat Name | C19: Initials | D19: Guest? | E19: Boat | F19: Sail # | G19: Spin* | H19: Non-Spin* | I19: Spin* | J19: Non-Spin* | K19: Min. | L19: Sec. | M19: Min.dd | N19: Time | O19: Place | P19: Winner | Q19: Boat Ahead | R19: to win
A20: Cliborne | B20: Bandit | E20: J/24 | F20: 2792 | G20: 170 | H20: 185 | I20: 0.9345794393 | K20: 42 | L20: 54 | M20: 42.9 | N20: 40.09345794 | O20: 1 | P20: 0 | R20: 170
A21: Schaible | B21: Spider | E21: B25 | F21: 46 | G21: 136 | H21: 151 | I21: 0.9652509653 | K21: 47 | L21: 28 | M21: 47.46666667 | N21: 45.81724582 | O21: 3 | P21: 5.723787873 | Q21: 0.9574327331 | R21: 284
A22: Forqurean | B22: Dark Horse | E22: J/24 | F22: 1024 | G22: 170 | H22: 185 | I22: 0.9345794393 | K22: 48 | L22: 0 | M22: 48 | N22: 44.85981308 | O22: 2 | P22: 4.76635514 | Q22: 4.76635514 | R22: 297
A23: Theis | B23: Gotcha | E23: S-2 6.7 | F23: 75 | G23: 208 | H23: 223 | I23: 0.9025270758 | O23: RC
A24: Evans | B24: Severence | E24: C&C 25 | F24: 14755 | G24: 217 | H24: 232 | I24: 0.8952551477
A25: Blackwater Yacht Racing Association - Race Results - Fleet 1
D26: Date: | E26: 2019-09-21 | F26: 2019 Fall Series Race 3 | K26: RC: George DeMestro/Bob Grogan
A27: Light east - 4 mph | P27: Time | Q27: Time | R27: Approx
G28: Handicap | I28: TCF | K28: Finish Time | M28: Calc(1) | N28: Adj.(2) | P28: Behind | Q28: Behind | R28: H'cap
A29: Skipper | B29: Boat Name | C29: Initials | D29: Guest? | E29: Boat | F29: Sail # | G29: Spin* | H29: Non-Spin* | I29: Spin* | J29: Non-Spin* | K29: Min. | L29: Sec. | M29: Min.dd | N29: Time | O29: Place | P29: Winner | Q29: Boat Ahead | R29: to win
A30: Cliborne | B30: Bandit | E30: J/24 | F30: 2792 | G30: 170 | H30: 185 | I30: 0.9345794393 | K30: 45 | L30: 58 | M30: 45.96666667 | N30: 42.95950156 | O30: 1 | P30: 0 | R30: 170
A31: Schaible | B31: Spider | E31: B25 | F31: 46 | G31: 136 | H31: 151 | I31: 0.9652509653 | K31: 45 | L31: 41 | M31: 45.68333333 | N31: 44.0958816 | O31: 2 | P31: 1.136380038 | R31: 163
A32: Forqurean | B32: Dark Horse | E32: J/24 | F32: 1024 | G32: 170 | H32: 185 | I32: 0.9345794393
A33: Theis | B33: Gotcha | E33: S-2 6.7 | F33: 75 | G33: 208 | H33: 223 | I33: 0.9025270758 | K33: 59 | L33: 20 | M33: 59.33333333 | N33: 53.54993983 | O33: 3 | P33: 10.59043827 | R33: 481
A34: Evans | B34: Severence | E34: C&C 25 | F34: 14755 | G34: 217 | H34: 232 | I34: 0.8952551477
A35: Blackwater Yacht Racing Association - Race Results - Fleet 1
D36: Date: | E36: 2019-09-21 | F36: 2019 Fall Series Race 4 | K36: RC: George DeMestro/Bob Grogan
A37: Windward Leeward Light southeast - 6 mph | P37: Time | Q37: Time | R37: Approx
G38: Handicap | I38: TCF | K38: Finish Time | M38: Calc(1) | N38: Adj.(2) | P38: Behind | Q38: Behind | R38: H'cap
A39: Skipper | B39: Boat Name | C39: Initials | D39: Guest? | E39: Boat | F39: Sail # | G39: Spin* | H39: Non-Spin* | I39: Spin* | J39: Non-Spin* | K39: Min. | L39: Sec. | M39: Min.dd | N39: Time | O39: Place | P39: Winner | Q39: Boat Ahead | R39: to win
A40: Cliborne | B40: Bandit | E40: J/24 | F40: 2792 | G40: 170 | H40: 185 | I40: 0.9345794393 | K40: 72 | L40: 4 | M40: 72.06666667 | N40: 67.35202492 | O40: 1 | P40: 0 | R40: 170
A41: Schaible | B41: Spider | E41: B25 | F41: 46 | G41: 136 | H41: 151 | I41: 0.9652509653 | K41: 75 | L41: 26 | M41: 75.43333333 | N41: 72.81209781 | O41: 2 | P41: 5.46007289 | Q41: 5.46007289 | R41: 220
A42: Forqurean | B42: Dark Horse | E42: J/24 | F42: 1024 | G42: 170 | H42: 185 | I42: 0.9345794393
A43: Theis | B43: Gotcha | E43: S-2 6.7 | F43: 75 | G43: 208 | H43: 223 | I43: 0.9025270758 | K43: 85 | L43: 26 | M43: 85.43333333 | N43: 77.10589651 | O43: 3 | P43: 9.753871588 | Q43: 4.293798698 | R43: 368
A44: Evans | B44: Severence | E44: C&C 25 | F44: 14755 | G44: 217 | H44: 232 | I44: 0.8952551477
A45: Blackwater Yacht Racing Association - Race Results - Fleet 1
D46: Date: | E46: 2019-10-05 | F46: 2019 Fall Series Race 5 | K46: RC: Bob Toone/Mark Gobble
A47: East 7 clocking to SE Windward Leeward Once Around | P47: Time | Q47: Time | R47: Approx
G48: Handicap | I48: TCF | K48: Finish Time | M48: Calc(1) | N48: Adj.(2) | P48: Behind | Q48: Behind | R48: H'cap
A49: Skipper | B49: Boat Name | C49: Initials | D49: Guest? | E49: Boat | F49: Sail # | G49: Spin* | H49: Non-Spin* | I49: Spin* | J49: Non-Spin* | K49: Min. | L49: Sec. | M49: Min.dd | N49: Time | O49: Place | P49: Winner | Q49: Boat Ahead | R49: to win
A50: Cliborne | B50: Bandit | E50: J/24 | F50: 2792 | G50: 170 | H50: 185 | I50: 0.9345794393 | K50: 22 | L50: 0 | M50: 22 | N50: 20.56074766 | O50: 1 | P50: 0 | R50: 170
A51: Schaible | B51: Spider | E51: B25 | F51: 46 | G51: 136 | H51: 151 | I51: 0.9652509653 | K51: 23 | L51: 5 | M51: 23.08333333 | N51: 22.28120978 | O51: 3 | P51: 1.720462118 | Q51: 1.29990137 | R51: 223
A52: Forqurean | B52: Dark Horse | E52: J/24 | F52: 1024 | G52: 170 | H52: 185 | I52: 0.9345794393 | K52: 22 | L52: 27 | M52: 22.45 | N52: 20.98130841 | O52: 2 | P52: 0.4205607477 | Q52: 0.4205607477 | R52: 192
A53: Theis | B53: Gotcha | E53: S-2 6.7 | F53: 75 | G53: 208 | H53: 223 | I53: 0.9025270758 | K53: 27 | L53: 12 | M53: 27.2 | N53: 24.54873646 | O53: 4 | P53: 3.987988799 | Q53: 2.267526681 | R53: 423
A54: Evans | B54: Severence | E54: C&C 25 | F54: 14755 | G54: 217 | H54: 232 | I54: 0.8952551477
A55: Blackwater Yacht Racing Association - Race Results - Fleet 1
D56: Date: | E56: 2019-10-05 | F56: 2019 Fall Series Race 6 | K56: RC: Bob Toone/Mark Gobble
A57: Northeast clocking to East 7 falling to zero. III & IV start first Windward/Leward/Offset once around, I & II Windward/Leeward twice around | P57: Time | Q57: Time | R57: Approx
G58: Handicap | I58: TCF | K58: Finish Time | M58: Calc(1) | N58: Adj.(2) | P58: Behind | Q58: Behind | R58: H'cap
A59: Skipper | B59: Boat Name | C59: Initials | D59: Guest? | E59: Boat | F59: Sail # | G59: Spin* | H59: Non-Spin* | I59: Spin* | J59: Non-Spin* | K59: Min. | L59: Sec. | M59: Min.dd | N59: Time | O59: Place | P59: Winner | Q59: Boat Ahead | R59: to win
A60: Cliborne | B60: Bandit | E60: J/24 | F60: 2792 | G60: 170 | H60: 185 | I60: 0.9345794393 | K60: 64 | L60: 31 | M60: 64.51666667 | N60: 60.29595016 | O60: 2 | P60: 0.04672897196 | Q60: 0.04672897196 | R60: 171
A61: Schaible | B61: Spider | E61: B25 | F61: 46 | G61: 136 | H61: 151 | I61: 0.9652509653 | K61: 64 | L61: 49 | M61: 64.81666667 | N61: 62.56435006 | O61: 3 | P61: 2.315128881 | Q61: 2.268399909 | R61: 176
A62: Forqurean | B62: Dark Horse | E62: J/24 | F62: 1024 | G62: 170 | H62: 185 | I62: 0.9345794393 | K62: 64 | L62: 28 | M62: 64.46666667 | N62: 60.24922118 | O62: 1 | P62: 0 | R62: 170
A63: Theis | B63: Gotcha | E63: S-2 6.7 | F63: 75 | G63: 208 | H63: 223 | I63: 0.9025270758 | K63: 71 | L63: 44 | M63: 71.73333333 | N63: 64.74127557 | O63: 4 | P63: 4.492054388 | Q63: 2.176925507 | R63: 291
A64: Evans | B64: Severence | E64: C&C 25 | F64: 14755 | G64: 217 | H64: 232 | I64: 0.8952551477
A65: Blackwater Yacht Racing Association - Race Results - Fleet 1
D66: Date: | E66: 2019-10-19 | F66: 2019 Fall Series Race 7 | K66: RC: Paul Hemler/Lee Arnold
A67: South west backing to South 7-8. Windward Leeward I & II 3X, III & IV 3X | P67: Time | Q67: Time | R67: Approx
G68: Handicap | I68: TCF | K68: Finish Time | M68: Calc(1) | N68: Adj.(2) | P68: Behind | Q68: Behind | R68: H'cap
A69: Skipper | B69: Boat Name | C69: Initials | D69: Guest? | E69: Boat | F69: Sail # | G69: Spin* | H69: Non-Spin* | I69: Spin* | J69: Non-Spin* | K69: Min. | L69: Sec. | M69: Min.dd | N69: Time | O69: Place | P69: Winner | Q69: Boat Ahead | R69: to win
A70: Cliborne | B70: Bandit | E70: J/24 | F70: 2792 | G70: 170 | H70: 185 | I70: 0.9345794393 | K70: 57 | L70: 30 | M70: 57.5 | N70: 53.73831776 | O70: 1 | P70: 0 | R70: 170
A71: Schaible | B71: Spider | E71: B25 | F71: 46 | G71: 136 | H71: 151 | I71: 0.9652509653 | K71: 63 | L71: 37 | M71: 63.61666667 | N71: 61.40604891 | O71: 3 | P71: 7.667731149 | Q71: 0.5606818784 | R71: 284
A72: Forqurean | B72: Dark Horse | E72: J/24 | F72: 1024 | G72: 170 | H72: 185 | I72: 0.9345794393
A73: Theis | B73: Gotcha | E73: S-2 6.7 | F73: 75 | G73: 208 | H73: 223 | I73: 0.9025270758 | K73: 67 | L73: 25 | M73: 67.41666667 | N73: 60.84536703 | O73: 2 | P73: 7.107049271 | Q73: 7.107049271 | R73: 355
A74: Evans | B74: Severence | E74: C&C 25 | F74: 14755 | G74: 217 | H74: 232 | I74: 0.8952551477
A75: Blackwater Yacht Racing Association - Race Results - Fleet 1
D76: Date: | E76: 2019-10-19 | F76: 2019 Fall Series Race 8 | K76: RC: Paul Hemler/Lee Arnold
A77: South west backing to South 7-8. Short Road Course Bull Run to PPYC | P77: Time | Q77: Time | R77: Approx
G78: Handicap | I78: TCF | K78: Finish Time | M78: Calc(1) | N78: Adj.(2) | P78: Behind | Q78: Behind | R78: H'cap
A79: Skipper | B79: Boat Name | C79: Initials | D79: Guest? | E79: Boat | F79: Sail # | G79: Spin* | H79: Non-Spin* | I79: Spin* | J79: Non-Spin* | K79: Min. | L79: Sec. | M79: Min.dd | N79: Time | O79: Place | P79: Winner | Q79: Boat Ahead | R79: to win
A80: Cliborne | B80: Bandit | E80: J/24 | F80: 2792 | G80: 170 | H80: 185 | I80: 0.9345794393 | K80: 25 | L80: 16 | M80: 25.26666667 | N80: 23.61370717 | O80: 1 | P80: 0 | R80: 170
A81: Schaible | B81: Spider | E81: B25 | F81: 46 | G81: 136 | H81: 151 | I81: 0.9652509653 | K81: 28 | L81: 35 | M81: 28.58333333 | N81: 27.59009009 | O81: 3 | P81: 3.976382925 | Q81: 2.033531727 | R81: 310
A82: Forqurean | B82: Dark Horse | E82: J/24 | F82: 1024 | G82: 170 | H82: 185 | I82: 0.9345794393
A83: Theis | B83: Gotcha | E83: S-2 6.7 | F83: 75 | G83: 208 | H83: 223 | I83: 0.9025270758 | K83: 28 | L83: 19 | M83: 28.31666667 | N83: 25.55655836 | O83: 2 | P83: 1.942851198 | Q83: 1.942851198 | R83: 299
A84: Evans | B84: Severence | E84: C&C 25 | F84: 14755 | G84: 217 | H84: 232 | I84: 0.8952551477

Sheet Fleet 2
A3: =#REF! ->  | B3: <-----Minutes after first start
A5: Blackwater Yacht Racing Association - Race Results - Fleet 2
D6: Date: | E6: 2019-09-07 | F6: 2019 Fall Series Race 1 | K6: RC: Warren Theis
A7: I & II W/L twice around, III & IV W/L Once around. Wind light and shifty 4 to 8 mph | P7: Time | Q7: Time | R7: Approx
G8: Handicap | I8: TCF | K8: Finish Time | M8: Calc(1) | N8: Adj.(2) | P8: Behind | Q8: Behind | R8: H'cap
A9: Skipper | B9: Boat Name | C9: Initials | D9: Guest? | E9: Boat | F9: Sail # | G9: Spin* | H9: Non-Spin* | I9: Spin* | J9: Non-Spin* | K9: Min. | L9: Sec. | M9: Min.dd | N9: Time | O9: Place | P9: Winner | Q9: Boat Ahead | R9: to win
A10: Arnold | B10: Sails Call | E10: Harbor 20 | F10: 322 | G10: 220 | H10: 235 | J10: 0.8810572687 | K10: 43 | L10: 20 | M10: 43.33333333 | N10: 38.17914831 | O10: 1 | P10: 0 | R10: 235
A11: Tunnell/Maloney | B11: Courageous | E11: Harbor 20 | F11: 278 | G11: 220 | H11: 235 | J11: 0.8810572687 | K11: 44 | L11: 44 | M11: 44.73333333 | N11: 39.41262849 | O11: 2 | P11: 1.233480176 | Q11: 1.233480176 | R11: 272
A12: Hemler | B12: Stoic | E12: Harbor 20 | F12: 330 | G12: 220 | H12: 235 | J12: 0.8810572687 | K12: 44 | L12: 52 | M12: 44.86666667 | N12: 39.53010279 | O12: 3 | P12: 1.350954479 | Q12: 0.1174743025 | R12: 275
A13: Toone | B13: StressLess | E13: Harbor 20 | F13: 212 | G13: 220 | H13: 235 | J13: 0.8810572687 | K13: 45 | L13: 49 | M13: 45.81666667 | N13: 40.3671072 | O13: 5 | P13: 2.187958884 | Q13: 0.6167400881 | R13: 300
A14: Miekina | B14: Synergy | E14: Harbor 20 | F14: 215 | G14: 220 | H14: 235 | J14: 0.8810572687 | K14: 48 | L14: 5 | M14: 48.08333333 | N14: 42.36417034 | O14: 6 | P14: 4.185022026 | Q14: 1.997063142 | R14: 359
A15: Lingner | B15: Easy Goer | E15: Harbor 20 | F15: 337 | G15: 220 | H15: 235 | J15: 0.8810572687
A16: Whitt | B16: Destiny | E16: Alerion 20 | F16: 6 | G16: 220 | H16: 235 | J16: 0.8810572687 | K16: 45 | L16: 7 | M16: 45.11666667 | N16: 39.75036711 | O16: 4 | P16: 1.571218796 | Q16: 0.2202643172 | R16: 282
A17: Runyan | B17: Audacious | E17: Alerion 20 | F17: 51062 | G17: 220 | H17: 235 | J17: 0.8810572687 | K17: 57 | L17: 48 | M17: 57.8 | N17: 50.92511013 | O17: 7 | P17: 12.74596182 | Q17: 8.560939794 | R17: 614
A18: Blackwater Yacht Racing Association - Race Results - Fleet 2
D19: Date: | E19: 2019-09-07 | F19: 2019 Fall Series Race 2 | K19: RC: Warren Theis
A20: I & II W/L twice around, III & IV W/L Once around. Wind light and shifty 4 to 8 mph | P20: Time | Q20: Time | R20: Approx
G21: Handicap | I21: TCF | K21: Finish Time | M21: Calc(1) | N21: Adj.(2) | P21: Behind | Q21: Behind | R21: H'cap
A22: Skipper | B22: Boat Name | C22: Initials | D22: Guest? | E22: Boat | F22: Sail # | G22: Spin* | H22: Non-Spin* | I22: Spin* | J22: Non-Spin* | K22: Min. | L22: Sec. | M22: Min.dd | N22: Time | O22: Place | P22: Winner | Q22: Boat Ahead | R22: to win
A23: Arnold | B23: Sails Call | E23: Harbor 20 | F23: 322 | G23: 220 | H23: 235 | J23: 0.8810572687 | K23: 52 | L23: 20 | M23: 52.33333333 | N23: 46.10866373 | O23: 6 | P23: 1.189427313 | Q23: 0.2790014684 | R23: 265
A24: Tunnell/Maloney | B24: Courageous | E24: Harbor 20 | F24: 278 | G24: 220 | H24: 235 | J24: 0.8810572687 | K24: 52 | L24: 1 | M24: 52.01666667 | N24: 45.82966226 | O24: 5 | P24: 0.9104258443 | Q24: 0.3964757709 | R24: 258
A25: Hemler | B25: Stoic | E25: Harbor 20 | F25: 330 | G25: 220 | H25: 235 | J25: 0.8810572687 | K25: 50 | L25: 59 | M25: 50.98333333 | N25: 44.91923642 | O25: 1 | P25: 0 | R25: 235
A26: Toone | B26: StressLess | E26: Harbor 20 | F26: 212 | G26: 220 | H26: 235 | J26: 0.8810572687 | K26: 51 | L26: 20 | M26: 51.33333333 | N26: 45.22760646 | O26: 2 | P26: 0.3083700441 | Q26: 0.3083700441 | R26: 243
A27: Miekina | B27: Synergy | E27: Harbor 20 | F27: 215 | G27: 220 | H27: 235 | J27: 0.8810572687 | K27: 53 | L27: 4 | M27: 53.06666667 | N27: 46.75477239 | O27: 7 | P27: 1.835535977 | Q27: 0.6461086637 | R27: 281
A28: Lingner | B28: Easy Goer | E28: Harbor 20 | F28: 337 | G28: 220 | H28: 235 | J28: 0.8810572687
A29: Whitt | B29: Destiny | E29: Alerion 20 | F29: 6 | G29: 220 | H29: 235 | J29: 0.8810572687 | K29: 51 | L29: 34 | M29: 51.56666667 | N29: 45.43318649 | O29: 4 | P29: 0.5139500734 | Q29: 0.05873715125 | R29: 248
A30: Runyan | B30: Audacious | E30: Alerion 20 | F30: 51062 | G30: 220 | H30: 235 | J30: 0.8810572687 | K30: 51 | L30: 30 | M30: 51.5 | N30: 45.37444934 | O30: 3 | P30: 0.4552129222 | Q30: 0.1468428781 | R30: 247
A31: Blackwater Yacht Racing Association - Race Results - Fleet 2
D32: Date: | E32: 2019-09-21 | F32: 2019 Fall Series Race 3 | K32: RC: George DeMestro/Bob Grogan
A33: Windward/Leeward - Light east - 4 mph | P33: Time | Q33: Time | R33: Approx
G34: Handicap | I34: TCF | K34: Finish Time | M34: Calc(1) | N34: Adj.(2) | P34: Behind | Q34: Behind | R34: H'cap
A35: Skipper | B35: Boat Name | C35: Initials | D35: Guest? | E35: Boat | F35: Sail # | G35: Spin* | H35: Non-Spin* | I35: Spin* | J35: Non-Spin* | K35: Min. | L35: Sec. | M35: Min.dd | N35: Time | O35: Place | P35: Winner | Q35: Boat Ahead | R35: to win
A36: Arnold | B36: Sails Call | E36: Harbor 20 | F36: 322 | G36: 220 | H36: 235 | J36: 0.8810572687 | K36: DNF | O36: 7
A37: Tunnell/Maloney | B37: Courageous | E37: Harbor 20 | F37: 278 | G37: 220 | H37: 235 | J37: 0.8810572687 | K37: 58 | L37: 19 | M37: 58.31666667 | N37: 51.38032305 | O37: 2 | P37: 0.3671071953 | Q37: 0.3671071953 | R37: 243
A38: Hemler | B38: Stoic | E38: Harbor 20 | F38: 330 | G38: 220 | H38: 235 | J38: 0.8810572687 | K38: 57 | L38: 54 | M38: 57.9 | N38: 51.01321586 | O38: 1 | P38: 0 | R38: 235
A39: Toone | B39: StressLess | E39: Harbor 20 | F39: 212 | G39: 220 | H39: 235 | J39: 0.8810572687 | K39: 58 | L39: 35 | M39: 58.58333333 | N39: 51.61527166 | O39: 3 | P39: 0.6020558003 | Q39: 0.234948605 | R39: 248
A40: Miekina | B40: Synergy | E40: Harbor 20 | F40: 215 | G40: 220 | H40: 235 | J40: 0.8810572687
A41: Lingner | B41: Easy Goer | E41: Harbor 20 | F41: 337 | G41: 220 | H41: 235 | J41: 0.8810572687
A42: Whitt | B42: Destiny | E42: Alerion 20 | F42: 6 | G42: 220 | H42: 235 | J42: 0.8810572687 | K42: 59 | L42: 57 | M42: 59.95 | N42: 52.81938326 | O42: 4 | P42: 1.806167401 | Q42: 1.204111601 | R42: 275
A43: Runyan | B43: Audacious | E43: Alerion 20 | F43: 51062 | G43: 220 | H43: 235 | J43: 0.8810572687 | K43: 62 | L43: 43 | M43: 62.71666667 | N43: 55.25697504 | O43: 5 | P43: 4.243759178 | Q43: 2.437591777 | R43: 329
A44: Blackwater Yacht Racing Association - Race Results - Fleet 2
D45: Date: | E45: 2019-09-21 | F45: 2019 Fall Series Race 4 | K45: RC: George DeMestro/Bob Grogan
A46: Windward Leeward Light southeast - 6 mph | P46: Time | Q46: Time | R46: Approx
G47: Handicap | I47: TCF | K47: Finish Time | M47: Calc(1) | N47: Adj.(2) | P47: Behind | Q47: Behind | R47: H'cap
A48: Skipper | B48: Boat Name | C48: Initials | D48: Guest? | E48: Boat | F48: Sail # | G48: Spin* | H48: Non-Spin* | I48: Spin* | J48: Non-Spin* | K48: Min. | L48: Sec. | M48: Min.dd | N48: Time | O48: Place | P48: Winner | Q48: Boat Ahead | R48: to win
A49: Arnold | B49: Sails Call | E49: Harbor 20 | F49: 322 | G49: 220 | H49: 235 | J49: 0.8810572687 | K49: 62 | L49: 45 | M49: 62.75 | N49: 55.28634361 | O49: 3 | P49: 0.5286343612 | Q49: 0.1762114537 | R49: 246
A50: Tunnell/Maloney | B50: Courageous | E50: Harbor 20 | F50: 278 | G50: 220 | H50: 235 | J50: 0.8810572687 | K50: 62 | L50: 9 | M50: 62.15 | N50: 54.75770925 | O50: 1 | P50: 0 | R50: 235
A51: Hemler | B51: Stoic | E51: Harbor 20 | F51: 330 | G51: 220 | H51: 235 | J51: 0.8810572687 | K51: 62 | L51: 33 | M51: 62.55 | N51: 55.11013216 | O51: 2 | P51: 0.3524229075 | Q51: 0.3524229075 | R51: 242
A52: Toone | B52: StressLess | E52: Harbor 20 | F52: 212 | G52: 220 | H52: 235 | J52: 0.8810572687 | K52: 65 | L52: 53 | M52: 65.88333333 | N52: 58.04698972 | O52: 6 | P52: 3.28928047 | Q52: 2.555066079 | R52: 303
A53: Miekina | B53: Synergy | E53: Harbor 20 | F53: 215 | G53: 220 | H53: 235 | J53: 0.8810572687
A54: Lingner | B54: Easy Goer | E54: Harbor 20 | F54: 337 | G54: 220 | H54: 235 | J54: 0.8810572687
A55: Whitt | B55: Destiny | E55: Alerion 20 | F55: 6 | G55: 220 | H55: 235 | J55: 0.8810572687 | K55: 62 | L55: 58 | M55: 62.96666667 | N55: 55.47723935 | O55: 4 | P55: 0.7195301028 | Q55: 0.1908957416 | R55: 250
A56: Runyan | B56: Audacious | E56: Alerion 20 | F56: 51062 | G56: 220 | H56: 235 | J56: 0.8810572687 | K56: 62 | L56: 59 | M56: 62.98333333 | N56: 55.49192364 | O56: 5 | P56: 0.7342143906 | Q56: 0.01468428781 | R56: 250
A57: Blackwater Yacht Racing Association - Race Results - Fleet 2
D58: Date: | E58: 2019-10-05 | F58: 2019 Fall Series Race 5 | K58: RC: Bob Toone/Mark Gobble
A59: East 7 clocking to SE Windward Leeward Once Around | P59: Time | Q59: Time | R59: Approx
G60: Handicap | I60: TCF | K60: Finish Time | M60: Calc(1) | N60: Adj.(2) | P60: Behind | Q60: Behind | R60: H'cap
A61: Skipper | B61: Boat Name | C61: Initials | D61: Guest? | E61: Boat | F61: Sail # | G61: Spin* | H61: Non-Spin* | I61: Spin* | J61: Non-Spin* | K61: Min. | L61: Sec. | M61: Min.dd | N61: Time | O61: Place | P61: Winner | Q61: Boat Ahead | R61: to win
A62: Arnold | B62: Sails Call | E62: Harbor 20 | F62: 322 | G62: 220 | H62: 235 | J62: 0.8810572687 | K62: 28 | L62: 6 | M62: 28.1 | N62: 24.75770925 | O62: 2 | P62: 1.262848752 | Q62: 1.262848752 | R62: 296
A63: Tunnell/Maloney | B63: Courageous | E63: Harbor 20 | F63: 278 | G63: 220 | H63: 235 | J63: 0.8810572687 | K63: 28 | L63: 47 | M63: 28.78333333 | N63: 25.35976505 | O63: 3 | P63: 1.864904552 | Q63: 0.6020558003 | R63: 325
A64: Hemler | B64: Stoic | E64: Harbor 20 | F64: 330 | G64: 220 | H64: 235 | J64: 0.8810572687 | K64: 26 | L64: 40 | M64: 26.66666667 | N64: 23.4948605 | O64: 1 | P64: 0 | R64: 235
A65: Toone | B65: StressLess | E65: Harbor 20 | F65: 212 | G65: 220 | H65: 235 | J65: 0.8810572687 | O65: RC
A66: Miekina | B66: Synergy | E66: Harbor 20 | F66: 215 | G66: 220 | H66: 235 | J66: 0.8810572687
A67: Lingner | B67: Easy Goer | E67: Harbor 20 | F67: 337 | G67: 220 | H67: 235 | J67: 0.8810572687
A68: Whitt | B68: Destiny | E68: Alerion 20 | F68: 6 | G68: 220 | H68: 235 | J68: 0.8810572687
A69: Runyan | B69: Audacious | E69: Alerion 20 | F69: 51062 | G69: 220 | H69: 235 | J69: 0.8810572687
A70: Blackwater Yacht Racing Association - Race Results - Fleet 2
D71: Date: | E71: 2019-10-05 | F71: 2019 Fall Series Race 6 | K71: RC: Bob Toone/Mark Gobble
A72: Northeast clocking to East 7 falling to zero. III & IV start first Windward/Leward/Offset once around, I & II Windward/Leeward twice around | P72: Time | Q72: Time | R72: Approx
G73: Handicap | I73: TCF | K73: Finish Time | M73: Calc(1) | N73: Adj.(2) | P73: Behind | Q73: Behind | R73: H'cap
A74: Skipper | B74: Boat Name | C74: Initials | D74: Guest? | E74: Boat | F74: Sail # | G74: Spin* | H74: Non-Spin* | I74: Spin* | J74: Non-Spin* | K74: Min. | L74: Sec. | M74: Min.dd | N74: Time | O74: Place | P74: Winner | Q74: Boat Ahead | R74: to win
A75: Arnold | B75: Sails Call | E75: Harbor 20 | F75: 322 | G75: 220 | H75: 235 | J75: 0.8810572687 | K75: 66 | L75: 31 | M75: 66.51666667 | N75: 58.60499266 | O75: 2 | P75: 0.4111600587 | Q75: 0.4111600587 | R75: 243
A76: Tunnell/Maloney | B76: Courageous | E76: Harbor 20 | F76: 278 | G76: 220 | H76: 235 | J76: 0.8810572687 | K76: 69 | L76: 22 | M76: 69.36666667 | N76: 61.11600587 | O76: 3 | P76: 2.922173275 | Q76: 2.511013216 | R76: 292
A77: Hemler | B77: Stoic | E77: Harbor 20 | F77: 330 | G77: 220 | H77: 235 | J77: 0.8810572687 | K77: 66 | L77: 3 | M77: 66.05 | N77: 58.1938326 | O77: 1 | P77: 0 | R77: 235
A78: Toone | B78: StressLess | E78: Harbor 20 | F78: 212 | G78: 220 | H78: 235 | J78: 0.8810572687 | O78: RC
A79: Miekina | B79: Synergy | E79: Harbor 20 | F79: 215 | G79: 220 | H79: 235 | J79: 0.8810572687
A80: Lingner | B80: Easy Goer | E80: Harbor 20 | F80: 337 | G80: 220 | H80: 235 | J80: 0.8810572687
A81: Whitt | B81: Destiny | E81: Alerion 20 | F81: 6 | G81: 220 | H81: 235 | J81: 0.8810572687
A82: Runyan | B82: Audacious | E82: Alerion 20 | F82: 51062 | G82: 220 | H82: 235 | J82: 0.8810572687
A83: Blackwater Yacht Racing Association - Race Results - Fleet 2
D84: Date: | E84: 2019-10-19 | F84: 2019 Fall Series Race 7 | K84: RC: Paul Hemler/Lee Arnold
A85: South west backing to South 7-8. Windward Leeward I & II 3X, III & IV 3X | P85: Time | Q85: Time | R85: Approx
G86: Handicap | I86: TCF | K86: Finish Time | M86: Calc(1) | N86: Adj.(2) | P86: Behind | Q86: Behind | R86: H'cap
A87: Skipper | B87: Boat Name | C87: Initials | D87: Guest? | E87: Boat | F87: Sail # | G87: Spin* | H87: Non-Spin* | I87: Spin* | J87: Non-Spin* | K87: Min. | L87: Sec. | M87: Min.dd | N87: Time | O87: Place | P87: Winner | Q87: Boat Ahead | R87: to win
A88: Arnold | B88: Sails Call | E88: Harbor 20 | F88: 322 | G88: 220 | H88: 235 | J88: 0.8810572687 | O88: RC
A89: Tunnell/Maloney | B89: Courageous | E89: Harbor 20 | F89: 278 | G89: 220 | H89: 235 | J89: 0.8810572687 | K89: 73 | L89: 36 | M89: 73.6 | N89: 64.84581498 | O89: 1 | P89: 0 | R89: 235
A90: Hemler | B90: Stoic | E90: Harbor 20 | F90: 330 | G90: 220 | H90: 235 | J90: 0.8810572687 | O90: RC
A91: Toone | B91: StressLess | E91: Harbor 20 | F91: 212 | G91: 220 | H91: 235 | J91: 0.8810572687 | K91: 79 | L91: 47 | M91: 79.78333333 | N91: 70.29368576 | O91: 3 | P91: 5.447870778 | Q91: 0.9544787078 | R91: 330
A92: Miekina | B92: Synergy | E92: Harbor 20 | F92: 215 | G92: 220 | H92: 235 | J92: 0.8810572687 | K92: 80 | L92: 20 | M92: 80.33333333 | N92: 70.77826725 | O92: 4 | P92: 5.932452276 | Q92: 0.4845814978 | R92: 339
A93: Lingner | B93: Easy Goer | E93: Harbor 20 | F93: 337 | G93: 220 | H93: 235 | J93: 0.8810572687
A94: Whitt | B94: Destiny | E94: Alerion 20 | F94: 6 | G94: 220 | H94: 235 | J94: 0.8810572687
A95: Runyan | B95: Audacious | E95: Alerion 20 | F95: 51062 | G95: 220 | H95: 235 | J95: 0.8810572687 | K95: 78 | L95: 42 | M95: 78.7 | N95: 69.33920705 | O95: 2 | P95: 4.49339207 | Q95: 4.49339207 | R95: 314
A96: Blackwater Yacht Racing Association - Race Results - Fleet 2
D97: Date: | E97: 2019-10-19 | F97: 2019 Fall Series Race 8 | K97: RC: Paul Hemler/Lee Arnold
A98: South west backing to South 7-8. Short Road Course Bull Run to PPYC | P98: Time | Q98: Time | R98: Approx
G99: Handicap | I99: TCF | K99: Finish Time | M99: Calc(1) | N99: Adj.(2) | P99: Behind | Q99: Behind | R99: H'cap
A100: Skipper | B100: Boat Name | C100: Initials | D100: Guest? | E100: Boat | F100: Sail # | G100: Spin* | H100: Non-Spin* | I100: Spin* | J100: Non-Spin* | K100: Min. | L100: Sec. | M100: Min.dd | N100: Time | O100: Place | P100: Winner | Q100: Boat Ahead | R100: to win
A101: Arnold | B101: Sails Call | E101: Harbor 20 | F101: 322 | G101: 220 | H101: 235 | J101: 0.8810572687 | O101: RC
A102: Tunnell/Maloney | B102: Courageous | E102: Harbor 20 | F102: 278 | G102: 220 | H102: 235 | J102: 0.8810572687 | K102: 28 | L102: 38 | M102: 28.63333333 | N102: 25.22760646 | O102: 1 | P102: 0 | R102: 235
A103: Hemler | B103: Stoic | E103: Harbor 20 | F103: 330 | G103: 220 | H103: 235 | J103: 0.8810572687 | O103: RC
A104: Toone | B104: StressLess | E104: Harbor 20 | F104: 212 | G104: 220 | H104: 235 | J104: 0.8810572687 | K104: 28 | L104: 48 | M104: 28.8 | N104: 25.37444934 | O104: 2 | P104: 0.1468428781 | Q104: 0.1468428781 | R104: 242
A105: Miekina | B105: Synergy | E105: Harbor 20 | F105: 215 | G105: 220 | H105: 235 | J105: 0.8810572687
A106: Lingner | B106: Easy Goer | E106: Harbor 20 | F106: 337 | G106: 220 | H106: 235 | J106: 0.8810572687
A107: Whitt | B107: Destiny | E107: Alerion 20 | F107: 6 | G107: 220 | H107: 235 | J107: 0.8810572687
A108: Runyan | B108: Audacious | E108: Alerion 20 | F108: 51062 | G108: 220 | H108: 235 | J108: 0.8810572687 | K108: 29 | L108: 30 | M108: 29.5 | N108: 25.99118943 | O108: 3 | P108: 0.7635829662 | Q108: 0.6167400881 | R108: 269

Sheet Fleet 3
A3: =#REF! ->  | B3: <-----Minutes after first start
A5: Blackwater Yacht Racing Association - Race Results - Fleet 3
E6: 2019-09-07 | F6: 2019 Fall Series Race 1 | K6: RC: Warren Theis
A7: I & II W/L twice around, III & IV W/L Once around. Wind light and shifty 4 to 8 mph | P7: Time | Q7: Time | R7: Approx
G8: Handicap | I8: TCF | K8: Finish Time | M8: Calc(1) | N8: Adj.(2) | P8: Behind | Q8: Behind | R8: H'cap
A9: Skipper | B9: Boat Name | C9: Initials | D9: Guest? | E9: Boat | F9: Sail # | G9: Spin* | H9: Non-Spin* | I9: Spin* | J9: Non-Spin* | K9: Min. | L9: Sec. | M9: Min.dd | N9: Time | O9: Place | P9: Winner | Q9: Boat Ahead | R9: to win
A10: Gobble | B10: Always Something | E10: Hunter 23 | F10: 1256 | G10: 243 | H10: 258 | J10: 0.8635578584 | K10: 34 | L10: 52 | M10: 29.86666667 | N10: 25.7915947 | O10: 2 | P10: 4.017401155 | Q10: 4.017401155 | R10: 472
A11: Perdue | B11: Debra Ann | E11: O'Day 25 CB | F11: 13092 | G11: 238 | H11: 253 | J11: 0.8673026886
A12: Hull | B12: Fools Game | E12: Pearson 26 | F12: 1183 | G12: 216 | H12: 231 | I12: 0.8960573477 | K12: 29 | L12: 18 | M12: 24.3 | N12: 21.77419355 | O12: 1 | P12: 0 | R12: 216
A13: Perdue | B13: Miss Virginia | E13: Hunter 23.5 | F13: 1309 | G13: 243 | H13: 258 | I13: 0.8748906387 | K13: 36 | L13: 9 | M13: 31.15 | N13: 27.25284339 | O13: 3 | P13: 5.478649846 | Q13: 1.461248691 | R13: 531
A14: Schraw | B14: Second Wind | E14: Ericson 23 | F14: 470 | G14: 244 | H14: 259 | J14: 0.8628127696
A15: Grogan | B15: Twinkle | E15: Hunter 23 | G15: 246 | H15: 261 | J15: 0.8613264427
A16: Blackwater Yacht Racing Association - Race Results - Fleet 3
E17: 2019-09-07 | F17: 2019 Fall Series Race 2 | K17: RC: Warren Theis
A18: I & II W/L twice around, III & IV W/L Once around. Wind light and shifty 4 to 8 mph | P18: Time | Q18: Time | R18: Approx
G19: Handicap | I19: TCF | K19: Finish Time | M19: Calc(1) | N19: Adj.(2) | P19: Behind | Q19: Behind | R19: H'cap
A20: Skipper | B20: Boat Name | C20: Initials | D20: Guest? | E20: Boat | F20: Sail # | G20: Spin* | H20: Non-Spin* | I20: Spin* | J20: Non-Spin* | K20: Min. | L20: Sec. | M20: Min.dd | N20: Time | O20: Place | P20: Winner | Q20: Boat Ahead | R20: to win
A21: Gobble | B21: Always Something | E21: Hunter 23 | F21: 1256 | G21: 243 | H21: 258 | J21: 0.8635578584 | K21: 36 | L21: 22 | M21: 31.36666667 | N21: 27.08693149 | O21: 2 | P21: 0.1156053262 | Q21: 0.1156053262 | R21: 263
A22: Perdue | B22: Debra Ann | E22: O'Day 25 CB | F22: 13092 | G22: 238 | H22: 253 | J22: 0.8673026886
A23: Hull | B23: Fools Game | E23: Pearson 26 | F23: 1183 | G23: 216 | H23: 231 | I23: 0.8960573477 | K23: 35 | L23: 6 | M23: 30.1 | N23: 26.97132616 | O23: 1 | P23: 0 | R23: 216
A24: Perdue | B24: Miss Virginia | E24: Hunter 23.5 | F24: 1309 | G24: 243 | H24: 258 | I24: 0.8748906387 | K24: 39 | L24: 35 | M24: 34.58333333 | N24: 30.25663459 | O24: 3 | P24: 3.285308422 | Q24: 3.169703096 | R24: 382
A25: Schraw | B25: Second Wind | E25: Ericson 23 | F25: 470 | G25: 244 | H25: 259 | J25: 0.8628127696
A26: Grogan | B26: Twinkle | E26: Hunter 23 | G26: 246 | H26: 261 | J26: 0.8613264427
A27: Blackwater Yacht Racing Association - Race Results - Fleet 3
E28: 2019-09-21 | F28: 2019 Fall Series Race 3 | K28: RC: George DeMestro/Bob Grogan
A29: Windward/Leeward - Light east - 4 mph | P29: Time | Q29: Time | R29: Approx
G30: Handicap | I30: TCF | K30: Finish Time | M30: Calc(1) | N30: Adj.(2) | P30: Behind | Q30: Behind | R30: H'cap
A31: Skipper | B31: Boat Name | C31: Initials | D31: Guest? | E31: Boat | F31: Sail # | G31: Spin* | H31: Non-Spin* | I31: Spin* | J31: Non-Spin* | K31: Min. | L31: Sec. | M31: Min.dd | N31: Time | O31: Place | P31: Winner | Q31: Boat Ahead | R31: to win
A32: Gobble | B32: Always Something | E32: Hunter 23 | F32: 1256 | G32: 243 | H32: 258 | J32: 0.8635578584
A33: Perdue | B33: Debra Ann | E33: O'Day 25 CB | F33: 13092 | G33: 238 | H33: 253 | J33: 0.8673026886
A34: Hull | B34: Fools Game | E34: Pearson 26 | F34: 1183 | G34: 216 | H34: 231 | J34: 0.884173298 | K34: 37 | L34: 18 | M34: 32.3 | N34: 28.55879752 | O34: 1 | P34: 0 | R34: 231
A35: Perdue | B35: Miss Virginia | E35: Hunter 23.5 | F35: 1309 | G35: 243 | H35: 258 | J35: 0.8635578584
A36: Schraw | B36: Second Wind | E36: Ericson 23 | F36: 470 | G36: 244 | H36: 259 | J36: 0.8628127696 | K36: 39 | L36: 16 | M36: 34.26666667 | N36: 29.56571757 | O36: 2 | P36: 1.006920048 | Q36: 1.006920048 | R36: 300
A37: Grogan | B37: Twinkle | E37: Hunter 23 | G37: 246 | H37: 261 | J37: 0.8613264427 | O37: RC
A38: Blackwater Yacht Racing Association - Race Results - Fleet 3
E39: 2019-09-21 | F39: 2019 Fall Series Race 4 | K39: RC: George DeMestro/Bob Grogan
A40: Windward Leeward Light southeast - 6 mph | P40: Time | Q40: Time | R40: Approx
G41: Handicap | I41: TCF | K41: Finish Time | M41: Calc(1) | N41: Adj.(2) | P41: Behind | Q41: Behind | R41: H'cap
A42: Skipper | B42: Boat Name | C42: Initials | D42: Guest? | E42: Boat | F42: Sail # | G42: Spin* | H42: Non-Spin* | I42: Spin* | J42: Non-Spin* | K42: Min. | L42: Sec. | M42: Min.dd | N42: Time | O42: Place | P42: Winner | Q42: Boat Ahead | R42: to win
A43: Gobble | B43: Always Something | E43: Hunter 23 | F43: 1256 | G43: 243 | H43: 258 | J43: 0.8635578584
A44: Perdue | B44: Debra Ann | E44: O'Day 25 CB | F44: 13092 | G44: 238 | H44: 253 | J44: 0.8673026886
A45: Hull | B45: Fools Game | E45: Pearson 26 | F45: 1183 | G45: 216 | H45: 231 | J45: 0.884173298 | K45: 60 | L45: 19 | M45: 55.31666667 | N45: 48.9095196 | O45: 2 | P45: 7.221282613 | Q45: 7.221282613 | R45: 427
A46: Perdue | B46: Miss Virginia | E46: Hunter 23.5 | F46: 1309 | G46: 243 | H46: 258 | J46: 0.8635578584
A47: Schraw | B47: Second Wind | E47: Ericson 23 | F47: 470 | G47: 244 | H47: 259 | J47: 0.8628127696 | K47: 53 | L47: 19 | M47: 48.31666667 | N47: 41.68823699 | O47: 1 | P47: 0 | R47: 259
A48: Grogan | B48: Twinkle | E48: Hunter 23 | G48: 246 | H48: 261 | J48: 0.8613264427 | O48: RC
A49: Blackwater Yacht Racing Association - Race Results - Fleet 3
E50: 2019-10-05 | F50: 2019 Fall Series Race 5 | K50: RC: Bob Toone/Mark Gobble
A51: East 7 clocking to SE Windward Leeward Once Around | P51: Time | Q51: Time | R51: Approx
G52: Handicap | I52: TCF | K52: Finish Time | M52: Calc(1) | N52: Adj.(2) | P52: Behind | Q52: Behind | R52: H'cap
A53: Skipper | B53: Boat Name | C53: Initials | D53: Guest? | E53: Boat | F53: Sail # | G53: Spin* | H53: Non-Spin* | I53: Spin* | J53: Non-Spin* | K53: Min. | L53: Sec. | M53: Min.dd | N53: Time | O53: Place | P53: Winner | Q53: Boat Ahead | R53: to win
A54: Gobble | B54: Always Something | E54: Hunter 23 | F54: 1256 | G54: 243 | H54: 258 | J54: 0.8635578584 | O54: RC
A55: Perdue | B55: Debra Ann | E55: O'Day 25 CB | F55: 13092 | G55: 238 | H55: 253 | J55: 0.8673026886
A56: Hull | B56: Fools Game | E56: Pearson 26 | F56: 1183 | G56: 216 | H56: 231 | J56: 0.884173298 | K56: 35 | L56: 12 | M56: 30.2 | N56: 26.7020336 | O56: 1 | P56: 0 | R56: 231
A57: Perdue | B57: Miss Virginia | E57: Hunter 23.5 | F57: 1309 | G57: 243 | H57: 258 | J57: 0.8635578584 | K57: 40 | L57: 31 | M57: 35.51666667 | N57: 30.6706966 | O57: 3 | P57: 3.968663005 | Q57: 0.3428277509 | R57: 430
A58: Schraw | B58: Second Wind | E58: Ericson 23 | F58: 470 | G58: 244 | H58: 259 | J58: 0.8628127696 | K58: 40 | L58: 9 | M58: 35.15 | N58: 30.32786885 | O58: 2 | P58: 3.625835254 | Q58: 3.625835254 | R58: 416
A59: Grogan | B59: Twinkle | E59: Hunter 23 | G59: 246 | H59: 261 | J59: 0.8613264427
A60: Blackwater Yacht Racing Association - Race Results - Fleet 3
E61: 2019-10-05 | F61: 2019 Fall Series Race 6 | K61: RC: Bob Toone/Mark Gobble
A62: Northeast clocking to East 7 falling to zero. III & IV start first Windward/Leward/Offset once around, I & II Windward/Leeward twice around | P62: Time | Q62: Time | R62: Approx
G63: Handicap | I63: TCF | K63: Finish Time | M63: Calc(1) | N63: Adj.(2) | P63: Behind | Q63: Behind | R63: H'cap
A64: Skipper | B64: Boat Name | C64: Initials | D64: Guest? | E64: Boat | F64: Sail # | G64: Spin* | H64: Non-Spin* | I64: Spin* | J64: Non-Spin* | K64: Min. | L64: Sec. | M64: Min.dd | N64: Time | O64: Place | P64: Winner | Q64: Boat Ahead | R64: to win
A65: Gobble | B65: Always Something | E65: Hunter 23 | F65: 1256 | G65: 243 | H65: 258 | J65: 0.8635578584 | O65: RC
A66: Perdue | B66: Debra Ann | E66: O'Day 25 CB | F66: 13092 | G66: 238 | H66: 253 | J66: 0.8673026886
A67: Hull | B67: Fools Game | E67: Pearson 26 | F67: 1183 | G67: 216 | H67: 231 | J67: 0.884173298 | K67: 46 | L67: 2 | M67: 41.03333333 | N67: 36.28057766 | O67: 3 | P67: 1.969389854 | Q67: 1.738263325 | R67: 296
A68: Perdue | B68: Miss Virginia | E68: Hunter 23.5 | F68: 1309 | G68: 243 | H68: 258 | J68: 0.8635578584 | K68: 45 | L68: 0 | M68: 40 | N68: 34.54231434 | O68: 2 | P68: 0.2311265295 | Q68: 0.2311265295 | R68: 266
A69: Schraw | B69: Second Wind | E69: Ericson 23 | F69: 470 | G69: 244 | H69: 259 | J69: 0.8628127696 | K69: 44 | L69: 46 | M69: 39.76666667 | N69: 34.31118781 | O69: 1 | P69: 0 | R69: 259
A70: Grogan | B70: Twinkle | E70: Hunter 23 | G70: 246 | H70: 261 | J70: 0.8613264427
A71: Blackwater Yacht Racing Association - Race Results - Fleet 3
E72: 2019-10-19 | F72: 2019 Fall Series Race 7 | K72: RC: Paul Hemler/Lee Arnold
A73: South west backing to South 7-8. Windward Leeward I & II 3X, III & IV 3X | P73: Time | Q73: Time | R73: Approx
G74: Handicap | I74: TCF | K74: Finish Time | M74: Calc(1) | N74: Adj.(2) | P74: Behind | Q74: Behind | R74: H'cap
A75: Skipper | B75: Boat Name | C75: Initials | D75: Guest? | E75: Boat | F75: Sail # | G75: Spin* | H75: Non-Spin* | I75: Spin* | J75: Non-Spin* | K75: Min. | L75: Sec. | M75: Min.dd | N75: Time | O75: Place | P75: Winner | Q75: Boat Ahead | R75: to win
A76: Gobble | B76: Always Something | E76: Hunter 23 | F76: 1256 | G76: 243 | H76: 258 | J76: 0.8635578584 | K76: 70 | L76: 47 | M76: 65.78333333 | N76: 56.80771445 | O76: 3 | P76: 5.060402622 | Q76: 1.673978471 | R76: 371
A77: Perdue | B77: Debra Ann | E77: O'Day 25 CB | F77: 13092 | G77: 238 | H77: 253 | J77: 0.8673026886
A78: Hull | B78: Fools Game | E78: Pearson 26 | F78: 1183 | G78: 216 | H78: 231 | I78: 0.8960573477 | K78: 62 | L78: 45 | M78: 57.75 | N78: 51.74731183 | O78: 1 | P78: 0 | R78: 216
A79: Perdue | B79: Miss Virginia | E79: Hunter 23.5 | F79: 1309 | G79: 243 | H79: 258 | I79: 0.8748906387 | K79: 71 | L79: 38 | M79: 66.63333333 | N79: 58.29687956 | O79: 4 | P79: 6.549567729 | Q79: 1.489165107 | R79: 388
A80: Schraw | B80: Second Wind | E80: Ericson 23 | F80: 470 | G80: 244 | H80: 259 | J80: 0.8628127696 | K80: 68 | L80: 54 | M80: 63.9 | N80: 55.13373598 | O80: 2 | P80: 3.386424151 | Q80: 3.386424151 | R80: 335
A81: Grogan | B81: Twinkle | E81: Hunter 23 | G81: 246 | H81: 261 | J81: 0.8613264427
A82: Blackwater Yacht Racing Association - Race Results - Fleet 3
E83: 2019-10-19 | F83: 2019 Fall Series Race 8 | K83: RC: Paul Hemler/Lee Arnold
A84: South west backing to South 7-8. Short Road Course Bull Run to PPYC | P84: Time | Q84: Time | R84: Approx
G85: Handicap | I85: TCF | K85: Finish Time | M85: Calc(1) | N85: Adj.(2) | P85: Behind | Q85: Behind | R85: H'cap
A86: Skipper | B86: Boat Name | C86: Initials | D86: Guest? | E86: Boat | F86: Sail # | G86: Spin* | H86: Non-Spin* | I86: Spin* | J86: Non-Spin* | K86: Min. | L86: Sec. | M86: Min.dd | N86: Time | O86: Place | P86: Winner | Q86: Boat Ahead | R86: to win
A87: Gobble | B87: Always Something | E87: Hunter 23 | F87: 1256 | G87: 243 | H87: 258 | J87: 0.8635578584 | K87: 38 | L87: 24 | M87: 33.4 | N87: 28.84283247 | O87: 4 | P87: 3.36109534 | Q87: 0.9754489572 | R87: 411
A88: Perdue | B88: Debra Ann | E88: O'Day 25 CB | F88: 13092 | G88: 238 | H88: 253 | J88: 0.8673026886
A89: Hull | B89: Fools Game | E89: Pearson 26 | F89: 1183 | G89: 216 | H89: 231 | I89: 0.8960573477 | K89: 36 | L89: 6 | M89: 31.1 | N89: 27.86738351 | O89: 3 | P89: 2.385646383 | Q89: 1.591501331 | R89: 320
A90: Perdue | B90: Miss Virginia | E90: Hunter 23.5 | F90: 1309 | G90: 243 | H90: 258 | I90: 0.8748906387 | K90: 35 | L90: 2 | M90: 30.03333333 | N90: 26.27588218 | O90: 2 | P90: 0.7941450517 | Q90: 0.7941450517 | R90: 279
A91: Schraw | B91: Second Wind | E91: Ericson 23 | F91: 470 | G91: 244 | H91: 259 | J91: 0.8628127696 | K91: 34 | L91: 32 | M91: 29.53333333 | N91: 25.48173713 | O91: 1 | P91: 0 | R91: 259
A92: Grogan | B92: Twinkle | E92: Hunter 23 | G92: 246 | H92: 261 | J92: 0.8613264427

Sheet Fleet 4
A3: =#REF! ->  | B3: <-----Minutes after first start
A5: Blackwater Yacht Racing Association - Race Results - Fleet 4
D6: Date: | E6: 2019-09-07 | F6: 2019 Fall Series Race 1 | K6: RC: Warren Theis
A7: I & II W/L twice around, III & IV W/L Once around. Wind light and shifty 4 to 8 mph | P7: Time | Q7: Time | R7: Approx
G8: Handicap | I8: TCF | K8: Finish Time | M8: Calc(1) | N8: Adj.(2) | P8: Behind | Q8: Behind | R8: H'cap
A9: Skipper | B9: Boat Name | C9: Initials | D9: Guest? | E9: Boat | F9: Sail # | G9: Spin* | H9: Non-Spin* | I9: Spin* | J9: Non-Spin* | K9: Min. | L9: Sec. | M9: Min.dd | N9: Time | O9: Place | P9: Winner | Q9: Boat Ahead | R9: to win
A10: Oginz | B10: Alarming | E10: S-2 9.2 | F10: 505 | G10: 189 | H10: 204 | J10: 0.9057971014 | K10: 36 | L10: 50 | M10: 31.83333333 | N10: 28.83454106 | O10: 2 | P10: 3.565227428 | Q10: 3.565227428 | R10: 360
A11: Johnson | B11: Felicite | E11: S-2 27 IB | F11: 13 | G11: 194 | H11: 209 | J11: 0.9017132552
A12: DeMestro | B12: Little Wing | E12: Beneteau 29 | F12: 485 | G12: 168 | H12: 183 | J12: 0.9233610342 | K12: 32 | L12: 22 | M12: 27.36666667 | N12: 25.26931363 | O12: 1 | P12: 0 | R12: 183
A13: Gearhart | B13: More Mischief | E13: Beneteau 285 | F13: 144 | G13: 199 | H13: 214 | J13: 0.8976660682
A14: Blackwater Yacht Racing Association - Race Results - Fleet 4
D15: Date: | E15: 2019-09-07 | F15: 2019 Fall Series Race 2 | K15: RC: Warren Theis
A16: I & II W/L twice around, III & IV W/L Once around. Wind light and shifty 4 to 8 mph | P16: Time | Q16: Time | R16: Approx
G17: Handicap | I17: TCF | K17: Finish Time | M17: Calc(1) | N17: Adj.(2) | P17: Behind | Q17: Behind | R17: H'cap
A18: Skipper | B18: Boat Name | C18: Initials | D18: Guest? | E18: Boat | F18: Sail # | G18: Spin* | H18: Non-Spin* | I18: Spin* | J18: Non-Spin* | K18: Min. | L18: Sec. | M18: Min.dd | N18: Time | O18: Place | P18: Winner | Q18: Boat Ahead | R18: to win
A19: Oginz | B19: Alarming | E19: S-2 9.2 | F19: 505 | G19: 189 | H19: 204 | J19: 0.9057971014 | K19: 36 | L19: 13 | M19: 31.21666667 | N19: 28.27596618 | O19: 2 | P19: 3.345218261 | Q19: 3.345218261 | R19: 352
A20: Johnson | B20: Felicite | E20: S-2 27 IB | F20: 13 | G20: 194 | H20: 209 | J20: 0.9017132552
A21: DeMestro | B21: Little Wing | E21: Beneteau 29 | F21: 485 | G21: 168 | H21: 183 | J21: 0.9233610342 | K21: 32 | L21: 0 | M21: 27 | N21: 24.93074792 | O21: 1 | P21: 0 | R21: 183
A22: Gearhart | B22: More Mischief | E22: Beneteau 285 | F22: 144 | G22: 199 | H22: 214 | J22: 0.8976660682
A23: Blackwater Yacht Racing Association - Race Results - Fleet 4
D24: Date: | E24: 2019-09-21 | F24: 2019 Fall Series Race 3 | K24: RC: George DeMestro/Bob Grogan
A25: Windward/Leeward - Light east - 4 mph | P25: Time | Q25: Time | R25: Approx
G26: Handicap | I26: TCF | K26: Finish Time | M26: Calc(1) | N26: Adj.(2) | P26: Behind | Q26: Behind | R26: H'cap
A27: Skipper | B27: Boat Name | C27: Initials | D27: Guest? | E27: Boat | F27: Sail # | G27: Spin* | H27: Non-Spin* | I27: Spin* | J27: Non-Spin* | K27: Min. | L27: Sec. | M27: Min.dd | N27: Time | O27: Place | P27: Winner | Q27: Boat Ahead | R27: to win
A28: Oginz | B28: Alarming | E28: S-2 9.2 | F28: 505 | G28: 189 | H28: 204 | J28: 0.9057971014 | K28: 39 | L28: 56 | M28: 34.93333333 | N28: 31.64251208 | O28: 2 | P28: 1.241554567 | Q28: 1.241554567 | R28: 249
A29: Johnson | B29: Felicite | E29: S-2 27 IB | F29: 13 | G29: 194 | H29: 209 | J29: 0.9017132552
A30: DeMestro | B30: Little Wing | E30: Beneteau 29 | F30: 485 | G30: 168 | H30: 183 | J30: 0.9233610342 | O30: RC
A31: Gearhart | B31: More Mischief | E31: Beneteau 285 | F31: 8 | G31: 199 | H31: 214 | J31: 0.8976660682 | K31: 38 | L31: 52 | M31: 33.86666667 | N31: 30.40095751 | O31: 1 | P31: 0 | R31: 214
A32: Blackwater Yacht Racing Association - Race Results - Fleet 4
D33: Date: | E33: 2019-09-21 | F33: 2019 Fall Series Race 4 | K33: RC: George DeMestro/Bob Grogan
A34: Windward Leeward Light southeast - 6 mph | P34: Time | Q34: Time | R34: Approx
G35: Handicap | I35: TCF | K35: Finish Time | M35: Calc(1) | N35: Adj.(2) | P35: Behind | Q35: Behind | R35: H'cap
A36: Skipper | B36: Boat Name | C36: Initials | D36: Guest? | E36: Boat | F36: Sail # | G36: Spin* | H36: Non-Spin* | I36: Spin* | J36: Non-Spin* | K36: Min. | L36: Sec. | M36: Min.dd | N36: Time | O36: Place | P36: Winner | Q36: Boat Ahead | R36: to win
A37: Oginz | B37: Alarming | E37: S-2 9.2 | F37: 505 | G37: 189 | H37: 204 | J37: 0.9057971014 | K37: 67 | L37: 52 | M37: 62.86666667 | N37: 56.94444444 | O37: 2 | P37: 8.664971075 | Q37: 8.664971075 | R37: 402
A38: Johnson | B38: Felicite | E38: S-2 27 IB | F38: 13 | G38: 194 | H38: 209 | J38: 0.9017132552
A39: DeMestro | B39: Little Wing | E39: Beneteau 29 | F39: 485 | G39: 168 | H39: 183 | J39: 0.9233610342 | O39: RC
A40: Gearhart | B40: More Mischief | E40: Beneteau 285 | F40: 144 | G40: 199 | H40: 214 | J40: 0.8976660682 | K40: 58 | L40: 47 | M40: 53.78333333 | N40: 48.27947337 | O40: 1 | P40: 0 | R40: 214
A41: Blackwater Yacht Racing Association - Race Results - Fleet 4
D42: Date: | E42: 2019-10-05 | F42: 2019 Fall Series Race 5 | K42: RC: Bob Toone/Mark Gobble
A43: East 7 clocking to SE Windward Leeward Once Around | P43: Time | Q43: Time | R43: Approx
G44: Handicap | I44: TCF | K44: Finish Time | M44: Calc(1) | N44: Adj.(2) | P44: Behind | Q44: Behind | R44: H'cap
A45: Skipper | B45: Boat Name | C45: Initials | D45: Guest? | E45: Boat | F45: Sail # | G45: Spin* | H45: Non-Spin* | I45: Spin* | J45: Non-Spin* | K45: Min. | L45: Sec. | M45: Min.dd | N45: Time | O45: Place | P45: Winner | Q45: Boat Ahead | R45: to win
A46: Oginz | B46: Alarming | E46: S-2 9.2 | F46: 505 | G46: 189 | H46: 204 | J46: 0.9057971014 | K46: 40 | L46: 38 | M46: 35.63333333 | N46: 32.27657005 | O46: 2 | P46: 7.484326281 | Q46: 7.484326281 | R46: 537
A47: Johnson | B47: Felicite | E47: S-2 27 IB | F47: 13 | G47: 194 | H47: 209 | J47: 0.9017132552
A48: DeMestro | B48: Little Wing | E48: Beneteau 29 | F48: 485 | G48: 168 | H48: 183 | J48: 0.9233610342 | K48: 31 | L48: 51 | M48: 26.85 | N48: 24.79224377 | O48: 1 | P48: 0 | R48: 183
A49: Gearhart | B49: More Mischief | E49: Beneteau 285 | F49: 144 | G49: 199 | H49: 214 | J49: 0.8976660682
A50: Blackwater Yacht Racing Association - Race Results - Fleet 4
D51: Date: | E51: 2019-10-05 | F51: 2019 Fall Series Race 6 | K51: RC: Bob Toone/Mark Gobble
A52: Northeast clocking to East 7 falling to zero. III & IV start first Windward/Leward/Offset once around, I & II Windward/Leeward twice around | P52: Time | Q52: Time | R52: Approx
G53: Handicap | I53: TCF | K53: Finish Time | M53: Calc(1) | N53: Adj.(2) | P53: Behind | Q53: Behind | R53: H'cap
A54: Skipper | B54: Boat Name | C54: Initials | D54: Guest? | E54: Boat | F54: Sail # | G54: Spin* | H54: Non-Spin* | I54: Spin* | J54: Non-Spin* | K54: Min. | L54: Sec. | M54: Min.dd | N54: Time | O54: Place | P54: Winner | Q54: Boat Ahead | R54: to win
A55: Oginz | B55: Alarming | E55: S-2 9.2 | F55: 505 | G55: 189 | H55: 204 | J55: 0.9057971014 | K55: 52 | L55: 53 | M55: 47.88333333 | N55: 43.37258454 | O55: 2 | P55: 8.238697191 | Q55: 8.238697191 | R55: 463
A56: Johnson | B56: Felicite | E56: S-2 27 IB | F56: 13 | G56: 194 | H56: 209 | J56: 0.9017132552
A57: DeMestro | B57: Little Wing | E57: Beneteau 29 | F57: 485 | G57: 168 | H57: 183 | J57: 0.9233610342 | K57: 43 | L57: 3 | M57: 38.05 | N57: 35.13388735 | O57: 1 | P57: 0 | R57: 183
A58: Gearhart | B58: More Mischief | E58: Beneteau 285 | F58: 144 | G58: 199 | H58: 214 | J58: 0.8976660682
A59: Blackwater Yacht Racing Association - Race Results - Fleet 4
D60: Date: | E60: 2019-10-19 | F60: 2019 Fall Series Race 7 | K60: RC: Paul Hemler/Lee Arnold
A61: South west backing to South 7-8. Windward Leeward I & II 3X, III & IV 3X | P61: Time | Q61: Time | R61: Approx
G62: Handicap | I62: TCF | K62: Finish Time | M62: Calc(1) | N62: Adj.(2) | P62: Behind | Q62: Behind | R62: H'cap
A63: Skipper | B63: Boat Name | C63: Initials | D63: Guest? | E63: Boat | F63: Sail # | G63: Spin* | H63: Non-Spin* | I63: Spin* | J63: Non-Spin* | K63: Min. | L63: Sec. | M63: Min.dd | N63: Time | O63: Place | P63: Winner | Q63: Boat Ahead | R63: to win
A64: Oginz | B64: Alarming | E64: S-2 9.2 | F64: 505 | G64: 189 | H64: 204 | J64: 0.9057971014 | K64: 69 | L64: 41 | M64: 64.68333333 | N64: 58.58997585 | O64: 1 | P64: 0 | R64: 204
A65: Johnson | B65: Felicite | E65: S-2 27 IB | F65: 13 | G65: 194 | H65: 209 | J65: 0.9017132552
A66: DeMestro | B66: Little Wing | E66: Beneteau 29 | F66: 485 | G66: 168 | H66: 183 | J66: 0.9233610342 | K66: DNS | L66: DNS | M66: DNS | N66: DNS | O66: 3
A67: Gearhart | B67: More Mischief | E67: Beneteau 285 | F67: 144 | G67: 199 | H67: 214 | J67: 0.8976660682
A68: Blackwater Yacht Racing Association - Race Results - Fleet 4
D69: Date: | E69: 2019-10-19 | F69: 2019 Fall Series Race 8 | K69: RC: Paul Hemler/Lee Arnold
A70: South west backing to South 7-8. Short Road Course Bull Run to PPYC | P70: Time | Q70: Time | R70: Approx
G71: Handicap | I71: TCF | K71: Finish Time | M71: Calc(1) | N71: Adj.(2) | P71: Behind | Q71: Behind | R71: H'cap
A72: Skipper | B72: Boat Name | C72: Initials | D72: Guest? | E72: Boat | F72: Sail # | G72: Spin* | H72: Non-Spin* | I72: Spin* | J72: Non-Spin* | K72: Min. | L72: Sec. | M72: Min.dd | N72: Time | O72: Place | P72: Winner | Q72: Boat Ahead | R72: to win
A73: Oginz | B73: Alarming | E73: S-2 9.2 | F73: 505 | G73: 189 | H73: 204 | J73: 0.9057971014 | K73: 38 | L73: 26 | M73: 33.43333333 | N73: 30.28381643 | O73: 1 | P73: 0 | R73: 204
A74: Johnson | B74: Felicite | E74: S-2 27 IB | F74: 13 | G74: 194 | H74: 209 | J74: 0.9017132552
A75: DeMestro | B75: Little Wing | E75: Beneteau 29 | F75: 485 | G75: 168 | H75: 183 | J75: 0.9233610342
A76: Gearhart | B76: More Mischief | E76: Beneteau 285 | F76: 144 | G76: 199 | H76: 214 | J76: 0.8976660682

Sheet Harbor 20 Fleet 7
A5: ='Fleet 1'!A16 -> 0 | B5: ='Fleet 1'!B16 -> 0 | E5: ='Fleet 1'!E16 -> 43715 | F5: ='Fleet 1'!F16 -> 2019 Fall Series Race 2 | G5: ='Fleet 1'!G16 -> 0 | H5: ='Fleet 1'!H16 -> 0 | I5: ='Fleet 1'!I16 -> 0 | J5: ='Fleet 1'!J16 -> 0 | K5: ='Fleet 1'!K16 -> RC: Warren Theis | L5: ='Fleet 1'!L16 -> 0 | M5: ='Fleet 1'!M16 -> 0 | N5: ='Fleet 1'!N16 -> 0 | O5: ='Fleet 1'!O16 -> 0
A6: ='Fleet 1'!A17 -> I & II W/L twice around, III & IV W/L Once around. Wind light and shifty 4 to 8 mph | B6: ='Fleet 1'!B17 -> 0 | E6: ='Fleet 1'!E17 -> 0 | F6: ='Fleet 1'!F17 -> 0 | G6: ='Fleet 1'!G17 -> 0 | H6: ='Fleet 1'!H17 -> 0 | I6: ='Fleet 1'!I17 -> 0 | J6: ='Fleet 1'!J17 -> 0 | K6: ='Fleet 1'!K17 -> 0 | L6: ='Fleet 1'!L17 -> 0 | M6: ='Fleet 1'!M17 -> 0 | N6: ='Fleet 1'!N17 -> 0 | O6: ='Fleet 1'!O17 -> 0
A7: ='Fleet 1'!A18 -> 0 | B7: ='Fleet 1'!B18 -> 0 | E7: ='Fleet 1'!E18 -> 0 | F7: ='Fleet 1'!F18 -> 0 | G7: ='Fleet 1'!G18 -> Handicap | H7: ='Fleet 1'!H18 -> 0 | I7: ='Fleet 1'!I18 -> TCF | J7: ='Fleet 1'!J18 -> 0 | K7: ='Fleet 1'!K18 -> Finish Time | L7: ='Fleet 1'!L18 -> 0 | M7: ='Fleet 1'!M18 -> Calc(1) | N7: ='Fleet 1'!N18 -> Adj.(2) | O7: ='Fleet 1'!O18 -> 0
A8: ='Fleet 1'!A19 -> Skipper | B8: ='Fleet 1'!B19 -> Boat Name | E8: ='Fleet 1'!E19 -> Boat | F8: ='Fleet 1'!F19 -> Sail # | G8: ='Fleet 1'!G19 -> Spin* | H8: ='Fleet 1'!H19 -> Non-Spin* | I8: ='Fleet 1'!I19 -> Spin* | J8: ='Fleet 1'!J19 -> Non-Spin* | K8: ='Fleet 1'!K19 -> Min. | L8: ='Fleet 1'!L19 -> Sec. | M8: ='Fleet 1'!M19 -> Min.dd | N8: ='Fleet 1'!N19 -> Time | O8: ='Fleet 1'!O19 -> Place
A9: Smith Mountain Lake Harbor 20 Fleet 7
A10: Date: | B10: 2019-09-07 | D10: 2019 Fall Series Race 1 | F10: RC: Warren Theis
A11: I & II W/L twice around, III & IV W/L Once around. Wind light and shifty 4 to 8 mph
G12: Finish Time
A13: Skipper | B13: Boat Name | C13: Sail Number | D13: Check in | E13: Boat | F13: Sail # | G13: Min. | H13: Sec. | I13: Place
A14: Arnold | B14: Sails Call | E14: Harbor 20 | F14: 322 | G14: 43 | H14: 20 | I14: 1
A15: Tunnell/Maloney | B15: Courageous | E15: Harbor 20 | F15: 278 | G15: 44 | H15: 44 | I15: 2
A16: Hemler | B16: Stoic | E16: Harbor 20 | F16: 330 | G16: 44 | H16: 52 | I16: 3
A17: Toone | B17: StressLess | E17: Harbor 20 | F17: 212 | G17: 45 | H17: 49 | I17: 4
A18: Miekina | B18: Synergy | E18: Harbor 20 | F18: 215 | G18: 48 | H18: 5 | I18: 5
A19: Lingner | B19: Easy Goer | E19: Harbor 20 | F19: 337
A20: Smith Mountain Lake Harbor 20 Fleet 7
A21: Date: | B21: 2019-09-07 | D21: 2019 Fall Series Race 2 | F21: RC: Warren Theis
A22: I & II W/L twice around, III & IV W/L Once around. Wind light and shifty 4 to 8 mph
G23: Finish Time
A24: Skipper | B24: Boat Name | C24: Sail Number | D24: Check in | E24: Boat | F24: Sail # | G24: Min. | H24: Sec. | I24: Place
A25: Arnold | B25: Sails Call | E25: Harbor 20 | F25: 322 | G25: 52 | H25: 20 | I25: 4
A26: Tunnell/Maloney | B26: Courageous | E26: Harbor 20 | F26: 278 | G26: 52 | H26: 1 | I26: 3
A27: Hemler | B27: Stoic | E27: Harbor 20 | F27: 330 | G27: 50 | H27: 59 | I27: 1
A28: Toone | B28: StressLess | E28: Harbor 20 | F28: 212 | G28: 51 | H28: 20 | I28: 2
A29: Miekina | B29: Synergy | E29: Harbor 20 | F29: 215 | G29: 53 | H29: 4 | I29: 5
A30: Lingner | B30: Easy Goer | E30: Harbor 20 | F30: 337
A31: Smith Mountain Lake Harbor 20 Fleet 7
A32: Date: | B32: 2019-09-21 | C32: 2019 Fall Series Race 3 | F32: RC: George DeMestro/Bob Grogan
A33: Windward/Leeward - Light east - 4 mph
G34: Finish Time
A35: Skipper | B35: Boat Name | C35: Sail Number | D35: Check in | E35: Boat | F35: Sail # | G35: Min. | H35: Sec. | I35: Place
A36: Arnold | B36: Sails Call | E36: Harbor 20 | F36: 322 | G36: DNF | H36: DNF | I36: 5
A37: Tunnell/Maloney | B37: Courageous | E37: Harbor 20 | F37: 278 | G37: 58 | H37: 19 | I37: 2
A38: Hemler | B38: Stoic | E38: Harbor 20 | F38: 330 | G38: 57 | H38: 54 | I38: 1
A39: Toone | B39: StressLess | E39: Harbor 20 | F39: 212 | G39: 58 | H39: 35 | I39: 3
A40: Miekina | B40: Synergy | E40: Harbor 20 | F40: 215
A41: Lingner | B41: Easy Goer | E41: Harbor 20 | F41: 337
A42: Smith Mountain Lake Harbor 20 Fleet 7
A43: Date: | B43: 2019-09-21 | C43: 2019 Fall Series Race 4 | F43: RC: George DeMestro/Bob Grogan
A44: Windward/Leeward - Light east - 4 mph
G45: Finish Time
A46: Skipper | B46: Boat Name | C46: Sail Number | D46: Check in | E46: Boat | F46: Sail # | G46: Min. | H46: Sec. | I46: Place
A47: Arnold | B47: Sails Call | E47: Harbor 20 | F47: 322 | G47: 62 | H47: 45 | I47: 3
A48: Tunnell/Maloney | B48: Courageous | E48: Harbor 20 | F48: 278 | G48: 62 | H48: 9 | I48: 1
A49: Hemler | B49: Stoic | E49: Harbor 20 | F49: 330 | G49: 62 | H49: 33 | I49: 2
A50: Toone | B50: StressLess | E50: Harbor 20 | F50: 212 | G50: 65 | H50: 53 | I50: 4
A51: Miekina | B51: Synergy | E51: Harbor 20 | F51: 215
A52: Lingner | B52: Easy Goer | E52: Harbor 20 | F52: 337
A53: Smith Mountain Lake Harbor 20 Fleet 7
A54: Date: | B54: 2019-10-05 | D54: 2019 Fall Series Race 5 | F54: RC: Bob Toone/Mark Gobble
A55: East 7 clocking to SE Windward Leeward Once Around
G56: Finish Time
A57: Skipper | B57: Boat Name | C57: Sail Number | D57: Check in | E57: Boat | F57: Sail # | G57: Min. | H57: Sec. | I57: Place
A58: Arnold | B58: Sails Call | E58: Harbor 20 | F58: 322 | G58: 28 | H58: 6 | I58: 2
A59: Tunnell/Maloney | B59: Courageous | E59: Harbor 20 | F59: 278 | G59: 28 | H59: 47 | I59: 3
A60: Hemler | B60: Stoic | E60: Harbor 20 | F60: 330 | G60: 26 | H60: 40 | I60: 1
A61: Toone | B61: StressLess | E61: Harbor 20 | F61: 212
A62: Miekina | B62: Synergy | E62: Harbor 20 | F62: 215
A63: Lingner | B63: Easy Goer | E63: Harbor 20 | F63: 337
A64: Smith Mountain Lake Harbor 20 Fleet 7
A65: Date: | B65: 2019-10-05 | D65: 2019 Fall Series Race 6 | F65: RC: Bob Toone/Mark Gobble
A66: Northeast clocking to East 7 falling to zero. III & IV start first Windward/Leward/Offset once around, I & II Windward/Leeward twice around
G67: Finish Time
A68: Skipper | B68: Boat Name | C68: Sail Number | D68: Check in | E68: Boat | F68: Sail # | G68: Min. | H68: Sec. | I68: Place
A69: Arnold | B69: Sails Call | E69: Harbor 20 | F69: 322 | G69: 66 | H69: 31 | I69: 2
A70: Tunnell/Maloney | B70: Courageous | E70: Harbor 20 | F70: 278 | G70: 69 | H70: 22 | I70: 3
A71: Hemler | B71: Stoic | E71: Harbor 20 | F71: 330 | G71: 66 | H71: 3 | I71: 1
A72: Toone | B72: StressLess | E72: Harbor 20 | F72: 212
A73: Miekina | B73: Synergy | E73: Harbor 20 | F73: 215
A74: Lingner | B74: Easy Goer | E74: Harbor 20 | F74: 337
A75: Smith Mountain Lake Harbor 20 Fleet 7
A76: Date: | B76: 2019-10-19 | D76: 2019 Fall Series Race 7 | F76: RC: Paul Hemler/Lee Arnold
A77: South west backing to South 7-8. Windward Leeward I & II 3X, III & IV 3X
G78: Finish Time
A79: Skipper | B79: Boat Name | C79: Sail Number | D79: Check in | E79: Boat | F79: Sail # | G79: Min. | H79: Sec. | I79: Place
A80: Arnold | B80: Sails Call | E80: Harbor 20 | F80: 322
A81: Tunnell/Maloney | B81: Courageous | E81: Harbor 20 | F81: 278 | G81: 73 | H81: 36 | I81: 1
A82: Hemler | B82: Stoic | E82: Harbor 20 | F82: 330
A83: Toone | B83: StressLess | E83: Harbor 20 | F83: 212 | G83: 79 | H83: 47 | I83: 2
A84: Miekina | B84: Synergy | E84: Harbor 20 | F84: 215 | G84: 80 | H84: 20 | I84: 3
A85: Lingner | B85: Easy Goer | E85: Harbor 20 | F85: 337
A86: Smith Mountain Lake Harbor 20 Fleet 7
A87: Date: | B87: 2019-10-19 | D87: 2019 Fall Series Race 8 | F87: RC: Paul Hemler/Lee Arnold
A88: South west backing to South 7-8. Short Road Course Bull Run to PPYC
G89: Finish Time
A90: Skipper | B90: Boat Name | C90: Sail Number | D90: Check in | E90: Boat | F90: Sail # | G90: Min. | H90: Sec. | I90: Place
A91: Arnold | B91: Sails Call | E91: Harbor 20 | F91: 322
A92: Tunnell/Maloney | B92: Courageous | E92: Harbor 20 | F92: 278 | G92: 28 | H92: 38 | I92: 1
A93: Hemler | B93: Stoic | E93: Harbor 20 | F93: 330
A94: Toone | B94: StressLess | E94: Harbor 20 | F94: 212 | G94: 28 | H94: 48 | I94: 2
A95: Miekina | B95: Synergy | E95: Harbor 20 | F95: 215
A96: Lingner | B96: Easy Goer | E96: Harbor 20 | F96: 337

Sheet Spring Series Scoring Summary (hidden)
A3: Blackwater Yacht Racing Association - Race Results - Fleet 1
D6: Race 1 | E6: Race 5 | F6: Race 6 | G6: Race 7 | H6: Race 8 | I6: MakeUp 1 | J6: MakeUp 2 | L6: # of Races | M6: Total | N6: Throw | O6: # of Races | P6: Points | Q6: Average | R6: Overall
A7: Skipper | B7: Boat Name | C7: Boat | D7: Place | E7: Place | F7: Place | G7: Place | H7: Place | I7: Place | J7: Place | M7: Points | N7: Out | O7: Less Tout | P7: Less Tout | Q7: Finish | R7: Rank
A8: Cliborne | B8: Bandit | C8: J/24 | D8: 1 | E8: 1 | F8: 2 | G8: 2 | H8: 1 | I8: 1 | L8: =COUNT(D8:J8) -> 6 | M8: =SUM(D8:J8) -> 8 | N8: 2 | O8: =IF(N8>0,L8-1,L8) -> 5 | P8: =M8-N8 -> 6 | Q8: =P8/O8 -> 1.2 | R8: =RANK(Q8,Q$8:Q$12,1) -> 1 | T8: ThrowOut
A9: Schaible | B9: Spider | C9: B25 | D9: 2.75 | E9: 4 | F9: 3 | I9: 2 | J9: 2 | L9: =COUNT(D9:J9) -> 5 | M9: =SUM(D9:J9) -> 13.75 | N9: 0 | O9: =IF(N9>0,L9-1,L9) -> 5 | P9: =M9-N9 -> 13.75 | Q9: =P9/O9 -> 2.75 | R9: =RANK(Q9,Q$8:Q$12,1) -> 3
A10: Forqurean | B10: Dark Horse | C10: J/24 | E10: 2 | F10: 1 | G10: 1 | H10: 2 | I10: 3 | J10: 1 | L10: =COUNT(D10:J10) -> 6 | M10: =SUM(D10:J10) -> 10 | N10: 3 | O10: =IF(N10>0,L10-1,L10) -> 5 | P10: =M10-N10 -> 7 | Q10: =P10/O10 -> 1.4 | R10: =RANK(Q10,Q$8:Q$12,1) -> 2 | T10: ThrowOut
A11: Theis | B11: Gotcha | C11: S-2 6.7 | D11: 2 | E11: 5 | F11: 4 | I11: 4 | J11: 3 | L11: =COUNT(D11:J11) -> 5 | M11: =SUM(D11:J11) -> 18 | N11: 0 | O11: =IF(N11>0,L11-1,L11) -> 5 | P11: =M11-N11 -> 18 | Q11: =P11/O11 -> 3.6 | R11: =RANK(Q11,Q$8:Q$12,1) -> 5
A12: Evans | B12: Severence | C12: C&C 25 | D12: 3 | E12: 3 | F12: 5 | G12: 3 | H12: 3 | I12: 3.5 | J12: 3.5 | L12: =COUNT(D12:J12) -> 7 | M12: =SUM(D12:J12) -> 24 | N12: 5 | O12: =IF(N12>0,L12-1,L12) -> 6 | P12: =M12-N12 -> 19 | Q12: =P12/O12 -> 3.166666667 | R12: =RANK(Q12,Q$8:Q$12,1) -> 4 | T12: ThrowOut | U12: RC Scores
A14: Blackwater Yacht Racing Association - Race Results - Fleet 2
D17: Race 1 | E17: Race 5 | F17: Race 6 | G17: Race 7 | H17: Race 8 | I17: MakeUp 1 | J17: MakeUp 2 | L17: # of Races | M17: Total | N17: Throw | O17: # of Races | P17: Points | Q17: Average | R17: Overall
A18: Skipper | B18: Boat Name | C18: Boat | D18: Place | E18: Place | F18: Place | G18: Place | H18: Place | I18: Place | J18: Place | M18: Points | N18: Out | O18: Less Tout | P18: Less Tout | Q18: Finish | R18: Rank
A19: Arnold | B19: Sails Call | C19: Harbor 20 | D19: 3 | E19: 1 | F19: 1 | I19: 2 | J19: 1 | L19: =COUNT(D19:J19) -> 5 | M19: =SUM(D19:J19) -> 8 | N19: 0 | O19: =IF(N19>0,L19-1,L19) -> 5 | P19: =M19-N19 -> 8 | Q19: =P19/O19 -> 1.6 | R19: =RANK(Q19,Q$19:Q$26,1) -> 2
A20: Tunnell/Maloney | B20: Courageous | C20: Harbor 20 | D20: 2 | E20: 5 | G20: 1 | H20: 1 | I20: 1 | J20: 2 | L20: =COUNT(D20:J20) -> 6 | M20: =SUM(D20:J20) -> 12 | N20: 5 | O20: 5 | P20: 7 | Q20: 1.4 | R20: =RANK(Q20,Q$19:Q$26,1) -> 1 | T20: ThrowOut
A21: Hemler | B21: Stoic | C21: Harbor 20 | D21: 1 | E21: 2 | F21: 2 | L21: =COUNT(D21:J21) -> 3 | M21: =SUM(D21:J21) -> 5 | N21: 0 | O21: 3 | P21: 5 | Q21: 1.666666667 | R21: DNQ | T21: Did Not Qualify
A22: Toone | B22: StressLess | C22: Harbor 20 | D22: 6 | E22: 4 | F22: 3 | G22: 2 | H22: 2 | I22: 3 | J22: 3 | L22: =COUNT(D22:J22) -> 7 | M22: =SUM(D22:J22) -> 23 | N22: 6 | O22: 6 | P22: 17 | Q22: 2.833333333 | R22: 3 | T22: ThrowOut
A23: Miekina | B23: Synergy | C23: Harbor 20 | D23: 4 | E23: RC | F23: RC | L23: =COUNT(D23:J23) -> 1 | M23: =SUM(D23:J23) -> 4 | N23: 0 | O23: 1 | P23: 4 | Q23: 4 | R23: DNQ | T23: Did Not Qualify
A24: Lingner | B24: Easy Goer | C24: Harbor 20 | D24: 3.5 | G24: 3 | H24: 3 | I24: 4 | J24: 4 | L24: =COUNT(D24:J24) -> 5 | M24: =SUM(D24:J24) -> 17.5 | N24: 0 | O24: 5 | P24: 17.5 | Q24: 3.5 | R24: 4 | T24: RC Scores
A25: Whitt | B25: Destiny | C25: Alerion 20 | D25: 5 | E25: 3 | F25: 5 | L25: =COUNT(D25:J25) -> 3 | M25: =SUM(D25:J25) -> 13 | N25: 0 | O25: 3 | P25: 13 | Q25: 4.333333333 | R25: DNQ | T25: Did Not Qualify
A26: Runyan | B26: Audacious | C26: Alerion 20 | D26: 7 | E26: 6 | F26: 4 | I26: 5 | J26: 5 | L26: =COUNT(D26:J26) -> 5 | M26: =SUM(D26:J26) -> 27 | N26: 0 | O26: 5 | P26: 27 | Q26: 5.4 | R26: 5
A28: Blackwater Yacht Racing Association - Race Results - Fleet 3
D31: Race 1 | E31: Race 5 | F31: Race 6 | G31: Race 7 | H31: Race 8 | I31: MakeUp 1 | J31: MakeUp 2 | L31: # of Races | M31: Total | N31: Throw | O31: # of Races | P31: Points | Q31: Average | R31: Overall
A32: Skipper | B32: Boat Name | C32: Boat | D32: Place | E32: Place | F32: Place | G32: Place | H32: Place | I32: Place | J32: Place | M32: Points | N32: Out | O32: Less Tout | P32: Less Tout | Q32: Finish | R32: Rank
A33: Gobble | B33: Always Something | C33: Hunter 23 | E33: 3 | F33: 4 | L33: =COUNT(D33:J33) -> 2 | M33: =SUM(D33:J33) -> 7 | N33: 0 | O33: =IF(N33>0,L33-1,L33) -> 2 | P33: =M33-N33 -> 7 | Q33: =P33/O33 -> 3.5 | R33: DNQ | T33: Did Not Qualify
A34: Perdue | B34: Debra Ann | C34: O'Day 25 CB | L34: =COUNT(D34:J34) -> 0 | M34: =SUM(D34:J34) -> 0 | N34: 0 | O34: 0 | P34: 0
A35: Hull | B35: Fools Game | C35: Pearson 26 | D35: 4 | E35: 1 | F35: 1 | G35: 1.25 | H35: 1.25 | I35: 2 | J35: 1 | L35: =COUNT(D35:J35) -> 7 | M35: =SUM(D35:J35) -> 11.5 | N35: 4 | O35: 6 | P35: 7.5 | Q35: =P35/O35 -> 1.25 | R35: =RANK(Q35,Q$33:Q$38,1) -> 1 | T35: ThrowOut | U35: RC Scores
A36: Perdue | B36: Miss Virginia | C36: Hunter 23.5 | D36: 2 | E36: 5 | F36: 5 | L36: =COUNT(D36:J36) -> 3 | M36: =SUM(D36:J36) -> 12 | N36: 0 | O36: 3 | P36: 12 | Q36: =P36/O36 -> 4 | R36: DNQ | T36: Did Not Qualify
A37: Schraw | B37: Second Wind | C37: Ericson 23 | D37: 3 | E37: 4 | F37: 3 | G37: 1 | H37: 1 | I37: 3 | J37: 3 | L37: =COUNT(D37:J37) -> 7 | M37: =SUM(D37:J37) -> 18 | N37: 4 | O37: 6 | P37: 14 | Q37: =P37/O37 -> 2.333333333 | R37: =RANK(Q37,Q$33:Q$38,1) -> 3 | T37: ThrowOut
A38: Grogan | B38: Twinkle | C38: Hunter 23 | D38: 1 | E38: 2 | F38: 2 | G38: 2 | H38: 2 | I38: 1 | J38: 2 | L38: =COUNT(D38:J38) -> 7 | M38: =SUM(D38:J38) -> 12 | N38: 2 | O38: 6 | P38: 10 | Q38: =P38/O38 -> 1.666666667 | R38: =RANK(Q38,Q$33:Q$38,1) -> 2 | T38: ThrowOut
A40: Blackwater Yacht Racing Association - Race Results - Fleet 4
D43: Race 1 | E43: Race 5 | F43: Race 6 | G43: Race 7 | H43: Race 8 | I43: MakeUp 1 | J43: MakeUp 2 | L43: # of Races | M43: Total | N43: Throw | O43: # of Races | P43: Points | Q43: Average | R43: Overall
A44: Skipper | B44: Boat Name | C44: Boat | D44: Place | E44: Place | F44: Place | G44: Place | H44: Place | I44: Place | J44: Place | M44: Points | N44: Out | O44: Less Tout | P44: Less Tout | Q44: Finish | R44: Rank
A45: Oginz | B45: Alarming | C45: S-2 9.2 | D45: 1 | E45: 2 | F45: 2 | G45: 1 | H45: 1 | I45: 2 | J45: 2 | L45: =COUNT(D45:J45) -> 7 | M45: =SUM(D45:J45) -> 11 | N45: 2 | O45: =IF(N45>0,L45-1,L45) -> 6 | P45: =M45-N45 -> 9 | Q45: =P45/O45 -> 1.5 | R45: =RANK(Q45,Q$45:Q$48,1) -> 2 | T45: ThrowOut
A46: Johnson | B46: Felicite | C46: S-2 27 IB | L46: =COUNT(D46:J46) -> 0 | M46: =SUM(D46:J46) -> 0 | N46: 0 | O46: =IF(N46>0,L46-1,L46) -> 0 | P46: =M46-N46 -> 0
A47: DeMestro | B47: Little Wing | C47: Beneteau 29 | D47: 2 | E47: 1 | F47: 1 | I47: 1 | J47: 1 | L47: =COUNT(D47:J47) -> 5 | M47: =SUM(D47:J47) -> 6 | N47: 0 | O47: =IF(N47>0,L47-1,L47) -> 5 | P47: =M47-N47 -> 6 | Q47: =P47/O47 -> 1.2 | R47: =RANK(Q47,Q$45:Q$48,1) -> 1
A48: Gearhart | B48: More Mischief | C48: Beneteau 285 | D48: 4 | L48: =COUNT(D48:J48) -> 1 | M48: =SUM(D48:J48) -> 4 | N48: 0 | O48: =IF(N48>0,L48-1,L48) -> 1 | P48: =M48-N48 -> 4 | Q48: =P48/O48 -> 4 | R48: DNQ | T48: Did Not Qualify

Sheet Fall Series Scoring Summary (hidden)
A3: Blackwater Yacht Racing Association -Fall Race Results - Fleet 1
D6: Race 1 | E6: Race 2 | F6: Race 3 | G6: Race 4 | H6: Race 5 | I6: Race 6 | J6: Race 7 | K6: Race 8 | M6: # of Races | N6: Total | O6: Throw | P6: # of Races | Q6: Points | R6: Average | S6: Overall
A7: Skipper | B7: Boat Name | C7: Boat | D7: Place | E7: Place | F7: Place | G7: Place | H7: Place | I7: Place | J7: Place | K7: Place | N7: Points | O7: Out | P7: Less Tout | Q7: Less Tout | R7: Finish | S7: Rank
A8: Cliborne | B8: Bandit | C8: J/24 | D8: 1 | E8: 1 | F8: 1 | G8: 1 | H8: 1 | I8: 2 | J8: 1 | K8: 1 | M8: =COUNTIF(D8:K8,">0") -> 8 | N8: =SUM(D8:K8) -> 9 | O8: 2 | P8: =IF(O8>0,M8-1,M8) -> 7 | Q8: =N8-O8 -> 7 | R8: =IFERROR(Q8/P8,"") -> 1 | S8: =IFERROR(RANK(R8,R$8:R$11,1),"") -> 1 | U8: ThrowOut
A9: Schaible | B9: Spider | C9: B25 | D9: 3 | E9: 3 | F9: 2 | G9: 2 | H9: 3 | I9: 3 | J9: 3 | K9: 3 | M9: =COUNTIF(D9:K9,">0") -> 8 | N9: =SUM(D9:K9) -> 22 | O9: 6 | P9: 6 | Q9: 16 | R9: 2.666666667 | S9: =IFERROR(RANK(R9,R$8:R$11,1),"") -> 4 | U9: ThrowOut
A10: Forqurean | B10: Dark Horse | C10: J/24 | D10: 2 | E10: 2 | H10: 2 | I10: 1 | M10: =COUNTIF(D10:K10,">0") -> 4 | N10: =SUM(D10:K10) -> 7 | P10: 4 | Q10: 7 | R10: 1.75 | S10: 2 | U10: ThrowOut
A11: Theis | B11: Gotcha | C11: S-2 6.7 | D11: 2.5 | E11: 2.5 | F11: 3 | G11: 3 | H11: 4 | I11: 4 | J11: 2 | K11: 2 | M11: =COUNTIF(D11:K11,">0") -> 8 | N11: =SUM(D11:K11) -> 23 | O11: 8 | P11: 6 | Q11: 15 | R11: 2.5 | S11: 3 | U11: RC Scores
A12: Evans | B12: Severence | C12: C&C 25 | F12: RC | G12: RC | H12: RC | I12: RC | J12: RC | K12: RC | U12: Did Not Qualify
A14: Blackwater Yacht Racing Association -Fall Race Results - Fleet 2
D17: Race 1 | E17: Race 2 | F17: Race 3 | G17: Race 4 | H17: Race 5 | I17: Race 6 | J17: Race 7 | K17: Race 8 | M17: # of Races | N17: Total | O17: Throw | P17: # of Races | Q17: Points | R17: Average | S17: Overall
A18: Skipper | B18: Boat Name | C18: Boat | D18: Place | E18: Place | F18: Place | G18: Place | H18: Place | I18: Place | J18: Place | K18: Place | N18: Points | O18: Out | P18: Less Tout | Q18: Less Tout | R18: Finish | S18: Rank
A19: Arnold | B19: Sails Call | C19: Harbor 20 | D19: 1 | E19: 6 | F19: 7 | G19: 3 | H19: 2 | I19: 2 | J19: 2 | K19: 2 | M19: =COUNTIF(D19:K19,">0") -> 8 | N19: =SUM(D19:K19) -> 25 | O19: 13 | P19: 6 | Q19: =N19-O19 -> 12 | R19: =IFERROR(Q19/P19,"") -> 2 | S19: =IFERROR(RANK(R19,R$19:R$26,1),"") -> 3 | U19: ThrowOut | V19: RC Scores
A20: Tunnell/Maloney | B20: Courageous | C20: Harbor 20 | D20: 2 | E20: 5 | F20: 2 | G20: 1 | H20: 3 | I20: 3 | J20: 1 | K20: 1 | M20: 8 | N20: 18 | O20: 8 | P20: 6 | Q20: 10 | R20: =IFERROR(Q20/P20,"") -> 1.666666667 | S20: =IFERROR(RANK(R20,R$19:R$26,1),"") -> 2 | U20: ThrowOut
A21: Hemler | B21: Stoic | C21: Harbor 20 | D21: 3 | E21: 1 | F21: 1 | G21: 2 | H21: 1 | I21: 1 | J21: 1 | K21: 1 | M21: 8 | N21: 11 | O21: 5 | P21: 6 | Q21: 6 | R21: 1 | S21: 1 | U21: ThrowOut | V21: RC Scores
A22: Toone | B22: StressLess | C22: Harbor 20 | D22: 5 | E22: 2 | F22: 3 | G22: 6 | H22: 2.5 | I22: 2.5 | J22: 3 | K22: 2 | M22: 8 | N22: 26 | O22: 11 | P22: 6 | Q22: 15 | R22: 2.5 | S22: 4 | U22: ThrowOut | V22: RC Scores
A23: Miekina | B23: Synergy | C23: Harbor 20 | D23: 6 | E23: 7 | J23: 4 | M23: 3 | N23: 17 | P23: =IF(O23>0,M23-1,M23) -> 3 | Q23: 17 | R23: 5.666666667 | S23: 7 | U23: Did Not Qualify
A24: Lingner | B24: Easy Goer | C24: Harbor 20 | M24: 0 | N24: 0 | P24: 0 | Q24: 0 | U24: RC Scores
A25: Whitt | B25: Destiny | C25: Alerion 20 | D25: 4 | E25: 4 | F25: 4 | G25: 4 | M25: 4 | N25: 16 | P25: 4 | Q25: 16 | R25: 4 | S25: 6
A26: Runyan | B26: Audacious | C26: Alerion 20 | D26: 7 | E26: 3 | F26: 5 | G26: 5 | J26: 2 | K26: 3 | M26: 6 | N26: 25 | O26: 7 | P26: 5 | Q26: 18 | R26: 3.6 | S26: 5 | U26: ThrowOut
A28: Blackwater Yacht Racing Association -Fall Race Results - Fleet 3
D31: Race 1 | E31: Race 2 | F31: Race 3 | G31: Race 4 | H31: Race 5 | I31: Race 6 | J31: Race 7 | K31: Race 8 | M31: # of Races | N31: Total | O31: Throw | P31: # of Races | Q31: Points | R31: Average | S31: Overall
A32: Skipper | B32: Boat Name | C32: Boat | D32: Place | E32: Place | F32: Place | G32: Place | H32: Place | I32: Place | J32: Place | K32: Place | N32: Points | O32: Out | P32: Less Tout | Q32: Less Tout | R32: Finish | S32: Rank
A33: Gobble | B33: Always Something | C33: Hunter 23 | D33: 2 | E33: 2 | H33: 2.75 | I33: 2.75 | J33: 3 | K33: 4 | M33: =COUNTIF(D33:K33,">0") -> 6 | N33: =SUM(D33:K33) -> 16.5 | O33: 4 | P33: =IF(O33>0,M33-1,M33) -> 5 | Q33: =N33-O33 -> 12.5 | R33: =IFERROR(Q33/P33,"") -> 2.5 | S33: =IFERROR(RANK(R33,R$33:R$38,1),"") -> 3 | U33: ThrowOut | V33: RC Scores
A34: Perdue | B34: Debra Ann | C34: O'Day 25 CB | M34: =COUNTIF(D34:K34,">0") -> 0 | N34: =SUM(D34:K34) -> 0 | P34: 0 | Q34: 0 | S34: =IFERROR(RANK(R34,R$33:R$38,1),"") -> 
A35: Hull | B35: Fools Game | C35: Pearson 26 | D35: 1 | E35: 1 | F35: 1 | G35: 2 | H35: 1 | I35: 3 | J35: 1 | K35: 3 | M35: =COUNTIF(D35:K35,">0") -> 8 | N35: =SUM(D35:K35) -> 13 | O35: 6 | P35: 6 | Q35: 7 | R35: 1.166666667 | S35: 1 | U35: ThrowOut
A36: Perdue | B36: Miss Virginia | C36: Hunter 23.5 | D36: 3 | E36: 3 | H36: 3 | I36: 2 | J36: 4 | K36: 2 | M36: =COUNTIF(D36:K36,">0") -> 6 | N36: =SUM(D36:K36) -> 17 | O36: 4 | P36: 5 | Q36: 13 | R36: 2.6 | S36: 4 | U36: ThrowOut
A37: Schraw | B37: Second Wind | C37: Ericson 23 | F37: 2 | G37: 1 | H37: 2 | I37: 1 | J37: 2 | K37: 1 | M37: =COUNTIF(D37:K37,">0") -> 6 | N37: =SUM(D37:K37) -> 9 | O37: 2 | P37: 5 | Q37: 7 | R37: 1.4 | S37: 2 | U37: ThrowOut
A38: Grogan | B38: Twinkle | C38: Hunter 23 | F38: RC | G38: RC | U38: Did Not Qualify
A40: Blackwater Yacht Racing Association - Fall Race Results - Fleet 4
D43: Race 1 | E43: Race 2 | F43: Race 3 | G43: Race 4 | H43: Race 5 | I43: Race 6 | J43: Race 7 | K43: Race 8 | M43: # of Races | N43: Total | O43: Throw | P43: # of Races | Q43: Points | R43: Average | S43: Overall
A44: Skipper | B44: Boat Name | C44: Boat | D44: Place | E44: Place | F44: Place | G44: Place | H44: Place | I44: Place | J44: Place | K44: Place | N44: Points | O44: Out | P44: Less Tout | Q44: Less Tout | R44: Finish | S44: Rank
A45: Oginz | B45: Alarming | C45: S-2 9.2 | D45: 2 | E45: 2 | F45: 2 | G45: 2 | H45: 2 | I45: 2 | J45: 1 | K45: 1 | M45: =COUNTIF(D45:K45,">0") -> 8 | N45: =SUM(D45:K45) -> 14 | O45: 4 | P45: 6 | Q45: =N45-O45 -> 10 | R45: =IFERROR(Q45/P45,"") -> 1.666666667 | S45: =IFERROR(RANK(R45,R$45:R$48,1),"") -> 2 | U45: ThrowOut
A46: Johnson | B46: Felicite | C46: S-2 27 IB | M46: =COUNTIF(D46:K46,">0") -> 0 | N46: =SUM(D46:K46) -> 0 | P46: =IF(O46>0,M46-1,M46) -> 0 | Q46: =N46-O46 -> 0 | S46: =IFERROR(RANK(R46,R$45:R$48,1),"") -> 
A47: DeMestro | B47: Little Wing | C47: Beneteau 29 | D47: 1 | E47: 1 | F47: 1 | G47: 1 | H47: 1 | I47: 1 | J47: 3 | M47: =COUNTIF(D47:K47,">0") -> 7 | N47: =SUM(D47:K47) -> 9 | O47: 3 | P47: =IF(O47>0,M47-1,M47) -> 6 | Q47: =N47-O47 -> 6 | R47: 1 | S47: 1 | U47: RC Scores
A48: Gearhart | B48: More Mischief | C48: Beneteau 285 | F48: 1 | G48: 1 | M48: =COUNTIF(D48:K48,">0") -> 2 | N48: =SUM(D48:K48) -> 2 | P48: =IF(O48>0,M48-1,M48) -> 2 | Q48: =N48-O48 -> 2 | U48: Did Not Qualify

Sheet Season Series Scoring Summary (hidden)
A3: Blackwater Yacht Racing Association - Race Results - Fleet 1
D6: SPRING | E6: SPRING | F6: SPRING | G6: SPRING | H6: SPRING | I6: SPRING | J6: SPRING | K6: FALL | L6: FALL | M6: FALL | N6: FALL | O6: FALL | P6: FALL | Q6: FALL | R6: FALL | T6: SUMMARY | U6: SUMMARY | V6: SUMMARY | W6: SUMMARY | X6: SUMMARY | Y6: SUMMARY | Z6: SUMMARY
D7: Race 1 | E7: Race 5 | F7: Race 6 | G7: Race 7 | H7: Race 8 | I7: MakeUp 1 | J7: MakeUp 2 | K7: Race 1 | L7: Race 2 | M7: Race 3 | N7: Race 4 | O7: Race 5 | P7: Race 6 | Q7: Race 7 | R7: Race 8 | T7: # of Races | U7: Total | V7: Throw | W7: # of Races | X7: Points | Y7: Average | Z7: Overall
A8: Skipper | B8: Boat Name | C8: Boat | D8: Place | E8: Place | F8: Place | G8: Place | H8: Place | I8: Place | J8: Place | K8: Place | L8: Place | M8: Place | N8: Place | O8: Place | P8: Place | Q8: Place | R8: Place | U8: Points | V8: Out | W8: Less Tout | X8: Less Tout | Y8: Finish | Z8: Rank
A9: Cliborne | B9: Bandit | C9: J/24 | D9: 1 | E9: 1 | F9: 2 | G9: 2 | H9: 1 | I9: 1 | K9: ='Fall Series Scoring Summary'!D8 -> 1 | L9: ='Fall Series Scoring Summary'!E8 -> 1 | M9: ='Fall Series Scoring Summary'!F8 -> 1 | N9: ='Fall Series Scoring Summary'!G8 -> 1 | O9: ='Fall Series Scoring Summary'!H8 -> 1 | P9: ='Fall Series Scoring Summary'!I8 -> 2 | Q9: ='Fall Series Scoring Summary'!J8 -> 1 | R9: ='Fall Series Scoring Summary'!K8 -> 1 | T9: =COUNTIF(D9:R9,">0") -> 14 | U9: =SUM(D9:R9) -> 17 | V9: 4 | W9: 12 | X9: =U9-V9 -> 13 | Y9: =IFERROR(X9/W9,"") -> 1.083333333 | Z9: =IFERROR(RANK(Y9,Y$9:Y$13,1),"") -> 1
A10: Schaible | B10: Spider | C10: B25 | D10: 2.75 | E10: 4 | F10: 3 | I10: 2 | J10: 2 | K10: ='Fall Series Scoring Summary'!D9 -> 3 | L10: ='Fall Series Scoring Summary'!E9 -> 3 | M10: ='Fall Series Scoring Summary'!F9 -> 2 | N10: ='Fall Series Scoring Summary'!G9 -> 2 | O10: ='Fall Series Scoring Summary'!H9 -> 3 | P10: ='Fall Series Scoring Summary'!I9 -> 3 | Q10: ='Fall Series Scoring Summary'!J9 -> 3 | R10: ='Fall Series Scoring Summary'!K9 -> 3 | T10: =COUNTIF(D10:R10,">0") -> 13 | U10: =SUM(D10:R10) -> 35.75 | V10: 4 | W10: =IF(V10>0,T10-1,T10) -> 12 | X10: 31.75 | Y10: 2.645833333 | Z10: =IFERROR(RANK(Y10,Y$9:Y$13,1),"") -> 2
A11: Forqurean | B11: Dark Horse | C11: J/24 | E11: 2 | F11: 1 | G11: 1 | H11: 2 | I11: 3 | J11: 1 | K11: ='Fall Series Scoring Summary'!D10 -> 2 | L11: ='Fall Series Scoring Summary'!E10 -> 2 | M11: ='Fall Series Scoring Summary'!F10 ->  | N11: ='Fall Series Scoring Summary'!G10 ->  | O11: ='Fall Series Scoring Summary'!H10 -> 2 | P11: ='Fall Series Scoring Summary'!I10 -> 1 | Q11: ='Fall Series Scoring Summary'!J10 ->  | R11: ='Fall Series Scoring Summary'!K10 ->  | T11: =COUNTIF(D11:R11,">0") -> 10 | U11: =SUM(D11:R11) -> 17 | W11: 10 | X11: 17 | Z11: Did Not Qualify
A12: Theis | B12: Gotcha | C12: S-2 6.7 | D12: 2 | E12: 5 | F12: 4 | I12: 4 | J12: 3 | K12: ='Fall Series Scoring Summary'!D11 -> 2.5 | L12: ='Fall Series Scoring Summary'!E11 -> 2.5 | M12: ='Fall Series Scoring Summary'!F11 -> 3 | N12: ='Fall Series Scoring Summary'!G11 -> 3 | O12: ='Fall Series Scoring Summary'!H11 -> 4 | P12: ='Fall Series Scoring Summary'!I11 -> 4 | Q12: ='Fall Series Scoring Summary'!J11 -> 2 | R12: ='Fall Series Scoring Summary'!K11 -> 2 | T12: =COUNTIF(D12:R12,">0") -> 13 | U12: =SUM(D12:R12) -> 41 | V12: 5 | W12: 12 | X12: 36 | Y12: 3 | Z12: 3
A13: Evans | B13: Severence | C13: C&C 25 | D13: 3 | E13: 3 | F13: 5 | G13: 3 | H13: 3 | I13: 3.5 | J13: 3.5 | K13: ='Fall Series Scoring Summary'!D12 ->  | L13: ='Fall Series Scoring Summary'!E12 -> 0 | M13: ='Fall Series Scoring Summary'!F12 -> RC | N13: ='Fall Series Scoring Summary'!G12 -> RC | O13: ='Fall Series Scoring Summary'!H12 -> RC | P13: ='Fall Series Scoring Summary'!I12 -> RC | Q13: ='Fall Series Scoring Summary'!J12 -> RC | R13: ='Fall Series Scoring Summary'!K12 -> RC | T13: =COUNTIF(D13:R13,">0") -> 7 | U13: =SUM(D13:R13) -> 24 | W13: 7 | X13: 24 | Y13: 3.428571429 | Z13: Did Not Qualify
A15: Blackwater Yacht Racing Association - Race Results - Fleet 2
D17: SPRING | E17: SPRING | F17: SPRING | G17: SPRING | H17: SPRING | I17: SPRING | J17: SPRING | K17: FALL | L17: FALL | M17: FALL | N17: FALL | O17: FALL | P17: FALL | Q17: FALL | R17: FALL | T17: SUMMARY | U17: SUMMARY | V17: SUMMARY | W17: SUMMARY | X17: SUMMARY | Y17: SUMMARY | Z17: SUMMARY
D18: Race 1 | E18: Race 5 | F18: Race 6 | G18: Race 7 | H18: Race 8 | I18: MakeUp 1 | J18: MakeUp 2 | K18: Race 1 | L18: Race 2 | M18: Race 3 | N18: Race 4 | O18: Race 5 | P18: Race 6 | Q18: Race 7 | R18: Race 8 | T18: # of Races | U18: Total | V18: Throw | W18: # of Races | X18: Points | Y18: Average | Z18: Overall
A19: Skipper | B19: Boat Name | C19: Boat | D19: Place | E19: Place | F19: Place | G19: Place | H19: Place | I19: Place | J19: Place | K19: Place | L19: Place | M19: Place | N19: Place | O19: Place | P19: Place | Q19: Place | R19: Place | U19: Points | V19: Out | W19: Less Tout | X19: Less Tout | Y19: Finish | Z19: Rank
A20: Arnold | B20: Sails Call | C20: Harbor 20 | D20: 3 | E20: 1 | F20: 1 | I20: 2 | J20: 1 | K20: ='Fall Series Scoring Summary'!D19 -> 1 | L20: ='Fall Series Scoring Summary'!E19 -> 6 | M20: ='Fall Series Scoring Summary'!F19 -> 7 | N20: ='Fall Series Scoring Summary'!G19 -> 3 | O20: ='Fall Series Scoring Summary'!H19 -> 2 | P20: ='Fall Series Scoring Summary'!I19 -> 2 | Q20: ='Fall Series Scoring Summary'!J19 -> 2 | R20: ='Fall Series Scoring Summary'!K19 -> 2 | T20: =COUNTIF(D20:R20,">0") -> 13 | U20: =SUM(D20:R20) -> 33 | V20: 7 | W20: =IF(V20>0,T20-1,T20) -> 12 | X20: =U20-V20 -> 26 | Y20: =IFERROR(X20/W20,"") -> 2.166666667 | Z20: =IFERROR(RANK(Y20,Y$20:Y$27,1),"") -> 2
A21: Tunnell/Maloney | B21: Courageous | C21: Harbor 20 | D21: 2 | E21: 5 | G21: 1 | H21: 1 | I21: 1 | J21: 2 | K21: ='Fall Series Scoring Summary'!D20 -> 2 | L21: ='Fall Series Scoring Summary'!E20 -> 5 | M21: ='Fall Series Scoring Summary'!F20 -> 2 | N21: ='Fall Series Scoring Summary'!G20 -> 1 | O21: ='Fall Series Scoring Summary'!H20 -> 3 | P21: ='Fall Series Scoring Summary'!I20 -> 3 | Q21: ='Fall Series Scoring Summary'!J20 -> 1 | R21: ='Fall Series Scoring Summary'!K20 -> 1 | T21: =COUNTIF(D21:R21,">0") -> 14 | U21: =SUM(D21:R21) -> 30 | V21: 10 | W21: 12 | X21: =U21-V21 -> 20 | Y21: =IFERROR(X21/W21,"") -> 1.666666667 | Z21: =IFERROR(RANK(Y21,Y$20:Y$27,1),"") -> 1
A22: Hemler | B22: Stoic | C22: Harbor 20 | D22: 1 | E22: 2 | F22: 2 | K22: ='Fall Series Scoring Summary'!D21 -> 3 | L22: ='Fall Series Scoring Summary'!E21 -> 1 | M22: ='Fall Series Scoring Summary'!F21 -> 1 | N22: ='Fall Series Scoring Summary'!G21 -> 2 | O22: ='Fall Series Scoring Summary'!H21 -> 1 | P22: ='Fall Series Scoring Summary'!I21 -> 1 | Q22: ='Fall Series Scoring Summary'!J21 -> 1 | R22: ='Fall Series Scoring Summary'!K21 -> 1 | T22: =COUNTIF(D22:R22,">0") -> 11 | U22: =SUM(D22:R22) -> 16 | W22: =IF(V22>0,T22-1,T22) -> 11 | X22: 16 | Z22: Did Not Qualify
A23: Toone | B23: StressLess | C23: Harbor 20 | D23: 6 | E23: 4 | F23: 3 | G23: 2 | H23: 2 | I23: 3 | J23: 3 | K23: ='Fall Series Scoring Summary'!D22 -> 5 | L23: ='Fall Series Scoring Summary'!E22 -> 2 | M23: ='Fall Series Scoring Summary'!F22 -> 3 | N23: ='Fall Series Scoring Summary'!G22 -> 6 | O23: ='Fall Series Scoring Summary'!H22 -> 2.5 | P23: ='Fall Series Scoring Summary'!I22 -> 2.5 | Q23: ='Fall Series Scoring Summary'!J22 -> 3 | R23: ='Fall Series Scoring Summary'!K22 -> 2 | T23: =COUNTIF(D23:R23,">0") -> 15 | U23: =SUM(D23:R23) -> 49 | V23: 17 | W23: 12 | X23: 32 | Y23: 2.666666667 | Z23: 3
A24: Miekina | B24: Synergy | C24: Harbor 20 | D24: 4 | E24: RC | F24: RC | K24: ='Fall Series Scoring Summary'!D23 -> 6 | L24: ='Fall Series Scoring Summary'!E23 -> 7 | M24: ='Fall Series Scoring Summary'!F23 ->  | N24: ='Fall Series Scoring Summary'!G23 ->  | O24: ='Fall Series Scoring Summary'!H23 -> 0 | P24: ='Fall Series Scoring Summary'!I23 -> 0 | Q24: ='Fall Series Scoring Summary'!J23 -> 4 | R24: ='Fall Series Scoring Summary'!K23 -> 0 | T24: =COUNTIF(D24:R24,">0") -> 4 | U24: =SUM(D24:R24) -> 21 | W24: 4 | X24: 21 | Z24: Did Not Qualify
A25: Lingner | B25: Easy Goer | C25: Harbor 20 | D25: 3.5 | G25: 3 | H25: 3 | I25: 4 | J25: 4 | K25: ='Fall Series Scoring Summary'!D24 ->  | L25: ='Fall Series Scoring Summary'!E24 ->  | M25: ='Fall Series Scoring Summary'!F24 ->  | N25: ='Fall Series Scoring Summary'!G24 ->  | O25: ='Fall Series Scoring Summary'!H24 -> 0 | P25: ='Fall Series Scoring Summary'!I24 -> 0 | Q25: ='Fall Series Scoring Summary'!J24 -> 0 | R25: ='Fall Series Scoring Summary'!K24 -> 0 | T25: =COUNTIF(D25:R25,">0") -> 5 | U25: =SUM(D25:R25) -> 17.5 | W25: 5 | X25: 17.5 | Z25: Did Not Qualify
A26: Whitt | B26: Destiny | C26: Alerion 20 | D26: 5 | E26: 3 | F26: 5 | K26: ='Fall Series Scoring Summary'!D25 -> 4 | L26: ='Fall Series Scoring Summary'!E25 -> 4 | M26: ='Fall Series Scoring Summary'!F25 -> 4 | N26: ='Fall Series Scoring Summary'!G25 -> 4 | O26: ='Fall Series Scoring Summary'!H25 -> 0 | P26: ='Fall Series Scoring Summary'!I25 -> 0 | Q26: ='Fall Series Scoring Summary'!J25 -> 0 | R26: ='Fall Series Scoring Summary'!K25 -> 0 | T26: =COUNTIF(D26:R26,">0") -> 7 | U26: =SUM(D26:R26) -> 29 | W26: 7 | X26: 29 | Z26: Did Not Qualify
A27: Runyan | B27: Audacious | C27: Alerion 20 | D27: 7 | E27: 6 | F27: 4 | I27: 5 | J27: 5 | K27: ='Fall Series Scoring Summary'!D26 -> 7 | L27: ='Fall Series Scoring Summary'!E26 -> 3 | M27: ='Fall Series Scoring Summary'!F26 -> 5 | N27: ='Fall Series Scoring Summary'!G26 -> 5 | O27: ='Fall Series Scoring Summary'!H26 -> 0 | P27: ='Fall Series Scoring Summary'!I26 -> 0 | Q27: ='Fall Series Scoring Summary'!J26 -> 2 | R27: ='Fall Series Scoring Summary'!K26 -> 3 | T27: =COUNTIF(D27:R27,">0") -> 11 | U27: =SUM(D27:R27) -> 52 | W27: 11 | X27: 52 | Z27: Did Not Qualify
A29: Blackwater Yacht Racing Association - Race Results - Fleet 3
D31: SPRING | E31: SPRING | F31: SPRING | G31: SPRING | H31: SPRING | I31: SPRING | J31: SPRING | K31: FALL | L31: FALL | M31: FALL | N31: FALL | O31: FALL | P31: FALL | Q31: FALL | R31: FALL | T31: SUMMARY | U31: SUMMARY | V31: SUMMARY | W31: SUMMARY | X31: SUMMARY | Y31: SUMMARY | Z31: SUMMARY
D32: Race 1 | E32: Race 5 | F32: Race 6 | G32: Race 7 | H32: Race 8 | I32: MakeUp 1 | J32: MakeUp 2 | K32: Race 1 | L32: Race 2 | M32: Race 3 | N32: Race 4 | O32: Race 5 | P32: Race 6 | Q32: Race 7 | R32: Race 8 | T32: # of Races | U32: Total | V32: Throw | W32: # of Races | X32: Points | Y32: Average | Z32: Overall
A33: Skipper | B33: Boat Name | C33: Boat | D33: Place | E33: Place | F33: Place | G33: Place | H33: Place | I33: Place | J33: Place | K33: Place | L33: Place | M33: Place | N33: Place | O33: Place | P33: Place | Q33: Place | R33: Place | U33: Points | V33: Out | W33: Less Tout | X33: Less Tout | Y33: Finish | Z33: Rank
A34: Gobble | B34: Always Something | C34: Hunter 23 | E34: 3 | F34: 4 | K34: ='Fall Series Scoring Summary'!D33 -> 2 | L34: ='Fall Series Scoring Summary'!E33 -> 2 | M34: ='Fall Series Scoring Summary'!F33 ->  | N34: ='Fall Series Scoring Summary'!G33 ->  | O34: ='Fall Series Scoring Summary'!H33 -> 2.75 | P34: ='Fall Series Scoring Summary'!I33 -> 2.75 | Q34: ='Fall Series Scoring Summary'!J33 -> 3 | R34: ='Fall Series Scoring Summary'!K33 -> 4 | T34: =COUNTIF(D34:R34,">0") -> 8 | U34: =SUM(D34:R34) -> 23.5 | W34: =IF(V34>0,T34-1,T34) -> 8 | X34: =U34-V34 -> 23.5 | Z34: Did Not Qualify
A35: Perdue | B35: Debra Ann | C35: O'Day 25 CB | K35: ='Fall Series Scoring Summary'!D34 ->  | L35: ='Fall Series Scoring Summary'!E34 ->  | M35: ='Fall Series Scoring Summary'!F34 ->  | N35: ='Fall Series Scoring Summary'!G34 ->  | O35: ='Fall Series Scoring Summary'!H34 ->  | P35: ='Fall Series Scoring Summary'!I34 ->  | Q35: ='Fall Series Scoring Summary'!J34 ->  | R35: ='Fall Series Scoring Summary'!K34 ->  | T35: =COUNTIF(D35:R35,">0") -> 0 | U35: =SUM(D35:R35) -> 0 | W35: =IF(V35>0,T35-1,T35) -> 0 | X35: =U35-V35 -> 0 | Y35: =IFERROR(X35/W35,"") ->  | Z35: =IFERROR(RANK(Y35,Y$34:Y$39,1),"") -> 
A36: Hull | B36: Fools Game | C36: Pearson 26 | D36: 4 | E36: 1 | F36: 1 | G36: 1.25 | H36: 1.25 | I36: 2 | J36: 1 | K36: ='Fall Series Scoring Summary'!D35 -> 1 | L36: ='Fall Series Scoring Summary'!E35 -> 1 | M36: ='Fall Series Scoring Summary'!F35 -> 1 | N36: ='Fall Series Scoring Summary'!G35 -> 2 | O36: ='Fall Series Scoring Summary'!H35 -> 1 | P36: ='Fall Series Scoring Summary'!I35 -> 3 | Q36: ='Fall Series Scoring Summary'!J35 -> 1 | R36: ='Fall Series Scoring Summary'!K35 -> 3 | T36: =COUNTIF(D36:R36,">0") -> 15 | U36: =SUM(D36:R36) -> 24.5 | V36: 10 | W36: 12 | X36: 14.5 | Y36: 1.208333333 | Z36: 1
A37: Perdue | B37: Miss Virginia | C37: Hunter 23.5 | D37: 2 | E37: 5 | F37: 5 | K37: ='Fall Series Scoring Summary'!D36 -> 3 | L37: ='Fall Series Scoring Summary'!E36 -> 3 | M37: ='Fall Series Scoring Summary'!F36 ->  | N37: ='Fall Series Scoring Summary'!G36 ->  | O37: ='Fall Series Scoring Summary'!H36 -> 3 | P37: ='Fall Series Scoring Summary'!I36 -> 2 | Q37: ='Fall Series Scoring Summary'!J36 -> 4 | R37: ='Fall Series Scoring Summary'!K36 -> 2 | T37: =COUNTIF(D37:R37,">0") -> 9 | U37: =SUM(D37:R37) -> 29 | W37: 9 | X37: 29 | Z37: Did Not Qualify
A38: Schraw | B38: Second Wind | C38: Ericson 23 | D38: 3 | E38: 4 | F38: 3 | G38: 1 | H38: 1 | I38: 3 | J38: 3 | K38: ='Fall Series Scoring Summary'!D37 ->  | L38: ='Fall Series Scoring Summary'!E37 ->  | M38: ='Fall Series Scoring Summary'!F37 -> 2 | N38: ='Fall Series Scoring Summary'!G37 -> 1 | O38: ='Fall Series Scoring Summary'!H37 -> 2 | P38: ='Fall Series Scoring Summary'!I37 -> 1 | Q38: ='Fall Series Scoring Summary'!J37 -> 2 | R38: ='Fall Series Scoring Summary'!K37 -> 1 | T38: =COUNTIF(D38:R38,">0") -> 13 | U38: =SUM(D38:R38) -> 27 | V38: 4 | W38: 12 | X38: 23 | Y38: 1.916666667 | Z38: 2
A39: Grogan | B39: Twinkle | C39: Hunter 23 | D39: 1 | E39: 2 | F39: 2 | G39: 2 | H39: 2 | I39: 1 | J39: 2 | K39: ='Fall Series Scoring Summary'!D38 ->  | L39: ='Fall Series Scoring Summary'!E38 -> 0 | M39: ='Fall Series Scoring Summary'!F38 -> RC | N39: ='Fall Series Scoring Summary'!G38 -> RC | O39: ='Fall Series Scoring Summary'!H38 -> 0 | P39: ='Fall Series Scoring Summary'!I38 -> 0 | Q39: ='Fall Series Scoring Summary'!J38 -> 0 | R39: ='Fall Series Scoring Summary'!K38 -> 0 | T39: =COUNTIF(D39:R39,">0") -> 7 | U39: =SUM(D39:R39) -> 12 | W39: 7 | X39: 12 | Z39: Did Not Qualify
A41: Blackwater Yacht Racing Association - Race Results - Fleet 4
D43: SPRING | E43: SPRING | F43: SPRING | G43: SPRING | H43: SPRING | I43: SPRING | J43: SPRING | K43: FALL | L43: FALL | M43: FALL | N43: FALL | O43: FALL | P43: FALL | Q43: FALL | R43: FALL | T43: SUMMARY | U43: SUMMARY | V43: SUMMARY | W43: SUMMARY | X43: SUMMARY | Y43: SUMMARY | Z43: SUMMARY
D44: Race 1 | E44: Race 5 | F44: Race 6 | G44: Race 7 | H44: Race 8 | I44: MakeUp 1 | J44: MakeUp 2 | K44: Race 1 | L44: Race 2 | M44: Race 3 | N44: Race 4 | O44: Race 5 | P44: Race 6 | Q44: Race 7 | R44: Race 8 | T44: # of Races | U44: Total | V44: Throw | W44: # of Races | X44: Points | Y44: Average | Z44: Overall
A45: Skipper | B45: Boat Name | C45: Boat | D45: Place | E45: Place | F45: Place | G45: Place | H45: Place | I45: Place | J45: Place | K45: Place | L45: Place | M45: Place | N45: Place | O45: Place | P45: Place | Q45: Place | R45: Place | U45: Points | V45: Out | W45: Less Tout | X45: Less Tout | Y45: Finish | Z45: Rank
A46: Oginz | B46: Alarming | C46: S-2 9.2 | D46: 1 | E46: 2 | F46: 2 | G46: 1 | H46: 1 | I46: 2 | J46: 2 | K46: ='Fall Series Scoring Summary'!D45 -> 2 | L46: ='Fall Series Scoring Summary'!E45 -> 2 | M46: ='Fall Series Scoring Summary'!F45 -> 2 | N46: ='Fall Series Scoring Summary'!G45 -> 2 | O46: ='Fall Series Scoring Summary'!H45 -> 2 | P46: ='Fall Series Scoring Summary'!I45 -> 2 | Q46: ='Fall Series Scoring Summary'!J45 -> 1 | R46: ='Fall Series Scoring Summary'!K45 -> 1 | T46: =COUNTIF(D46:R46,">0") -> 15 | U46: =SUM(D46:R46) -> 25 | V46: 6 | W46: 12 | X46: =U46-V46 -> 19 | Y46: =IFERROR(X46/W46,"") -> 1.583333333 | Z46: =IFERROR(RANK(Y46,Y$46:Y$49,1),"") -> 2
A47: Johnson | B47: Felicite | C47: S-2 27 IB | K47: ='Fall Series Scoring Summary'!D46 -> 0 | L47: ='Fall Series Scoring Summary'!E46 -> 0 | M47: ='Fall Series Scoring Summary'!F46 -> 0 | N47: ='Fall Series Scoring Summary'!G46 -> 0 | O47: ='Fall Series Scoring Summary'!H46 -> 0 | P47: ='Fall Series Scoring Summary'!I46 -> 0 | Q47: ='Fall Series Scoring Summary'!J46 -> 0 | R47: ='Fall Series Scoring Summary'!K46 -> 0 | T47: =COUNTIF(D47:R47,">0") -> 0 | U47: =SUM(D47:R47) -> 0 | W47: =IF(V47>0,T47-1,T47) -> 0 | X47: =U47-V47 -> 0 | Z47: Did Not Qualify
A48: DeMestro | B48: Little Wing | C48: Beneteau 29 | D48: 2 | E48: 1 | F48: 1 | I48: 1 | J48: 1 | K48: ='Fall Series Scoring Summary'!D47 -> 1 | L48: ='Fall Series Scoring Summary'!E47 -> 1 | M48: ='Fall Series Scoring Summary'!F47 -> 1 | N48: ='Fall Series Scoring Summary'!G47 -> 1 | O48: ='Fall Series Scoring Summary'!H47 -> 1 | P48: ='Fall Series Scoring Summary'!I47 -> 1 | Q48: ='Fall Series Scoring Summary'!J47 -> 3 | R48: ='Fall Series Scoring Summary'!K47 -> 0 | T48: =COUNTIF(D48:R48,">0") -> 12 | U48: =SUM(D48:R48) -> 15 | W48: 12 | X48: 15 | Y48: =IFERROR(X48/W48,"") -> 1.25 | Z48: =IFERROR(RANK(Y48,Y$46:Y$49,1),"") -> 1
A49: Gearhart | B49: More Mischief | C49: Beneteau 285 | D49: 4 | K49: ='Fall Series Scoring Summary'!D48 -> 0 | L49: ='Fall Series Scoring Summary'!E48 -> 0 | M49: ='Fall Series Scoring Summary'!F48 -> 1 | N49: ='Fall Series Scoring Summary'!G48 -> 1 | O49: ='Fall Series Scoring Summary'!H48 -> 0 | P49: ='Fall Series Scoring Summary'!I48 -> 0 | Q49: ='Fall Series Scoring Summary'!J48 -> 0 | R49: ='Fall Series Scoring Summary'!K48 -> 0 | T49: =COUNTIF(D49:R49,">0") -> 3 | U49: =SUM(D49:R49) -> 6 | W49: 3 | X49: 6 | Z49: Did Not Qualify

Sheet Fleet 1 and 2 Combo (hidden)
A1: Control Z to run macro | S1: 5 | Y1: Winner
Y2: =MIN(N10:N27) -> 0
A3: =#REF! ->  | B3: <-----Minutes after first start
A5: Blackwater Yacht Racing Association - Race Results Fleets I & 2 | Z5: Test
D6: Date: | E6: =#REF! ->  | F6: =#REF! ->  | K6: =CONCATENATE("RC:"," ",#REF!) ->  | Y6: new tcf = | Z6: should =
A7: =#REF! ->  | P7: Time | Q7: Time | R7: Approx | T7: Finish Calculations | Y7: Winner Adj Time | Z7: Winner Adj Time | AC7: # of Boats
G8: Handicap | I8: TCF | K8: Finish Time | M8: Calc(1) | N8: Adj.(2) | P8: Behind | Q8: Behind | R8: H'cap | T8: S for Spin | Y8: /observed | AC8: =MAX(AC10:AC27) -> 10
A9: Skipper | B9: Boat Name | C9: Initials | D9: Guest? | E9: Boat | F9: Sail # | G9: Spin* | H9: Non-Spin* | I9: Spin* | J9: Non-Spin* | K9: Min. | L9: Sec. | M9: Min.dd | N9: Time | O9: Place | P9: Winner | Q9: Boat Ahead | R9: to win | T9: N for non
A10: Cliborne | B10: Bandit | E10: J/24 | F10: 2792 | G10: 170 | H10: =IFERROR(G10+15,"") -> 185 | I10: =IF(T10 = "s",1000/(900+G10),"") -> 0.9345794393 | J10: =IF(T10 ="n",1000/(900+H10),"") ->  | K10: =IF($AK10>0,(VLOOKUP($B10,#REF!,6,FALSE)),"") ->  | L10: =IF($AK10>0,(VLOOKUP($B10,#REF!,7,FALSE)),"") ->  | M10: =IF(AK10>0,(K10+L10/60)-A$3," ") ->  | N10: =IFERROR(U10," ") ->  | P10: =IFERROR(N10-$Y$2,"") ->  | R10: =IFERROR(ROUND((1000/Y10)-900,0),"") ->  | T10: s | U10: =IFERROR(IF(M10>0,IF(T10="s",M10*I10,0)+IF(T10="n",M10*J10,0)," "),"") ->  | V10: =IFERROR(RANK(N10,$N$10:$N$27,1),"") ->  | Y10: =IFERROR($Y$2/M10,"") ->  | Z10: =IFERROR(M10*Y10,"") ->  | AB10: 1 | AC10: 1 | AD10: 0 | AH10: 55 | AI10: 39 | AK10: =(VLOOKUP($B10,#REF!,6,FALSE)) -> 
A11: Schaible | B11: Spider | E11: B25 | F11: 46 | G11: 136 | H11: 151 | I11: 0.9652509653 | J11: =IF(T11 ="n",1000/(900+H11),"") ->  | K11: =IF($AK11>0,(VLOOKUP($B11,#REF!,6,FALSE)),"") ->  | L11: =IF($AK11>0,(VLOOKUP($B11,#REF!,7,FALSE)),"") ->  | M11: =IF(AK11>0,(K11+L11/60)-A$3," ") ->  | Q11: 0.1551346816 | T11: s | U11: =IFERROR(IF(M11>0,IF(T11="s",M11*I11,0)+IF(T11="n",M11*J11,0)," "),"") ->  | Z11: =IFERROR(M11*Y11,"") ->  | AB11: 2 | AC11: 9 | AD11: 8.485037107 | AE11: 0.1551346816 | AH11: 56 | AI11: 22 | AK11: =(VLOOKUP($B11,#REF!,6,FALSE)) -> 
A12: Forqurean | B12: Dark Horse | E12: J/24 | F12: 1024 | G12: 170 | H12: 185 | I12: 0.9345794393 | J12: =IF(T12 ="n",1000/(900+H12),"") ->  | K12: =IF($AK12>0,(VLOOKUP($B12,#REF!,6,FALSE)),"") ->  | L12: =IF($AK12>0,(VLOOKUP($B12,#REF!,7,FALSE)),"") ->  | Q12: 0.216490318 | T12: s | AB12: 3 | AC12: 3 | AD12: 4.361370717 | AE12: 0.216490318 | AH12: 54 | AI12: 9 | AK12: =(VLOOKUP($B12,#REF!,6,FALSE)) -> 
A13: Theis | B13: Gotcha | E13: S-2 6.7 | F13: 75 | G13: 208 | H13: 223 | I13: 0.9025270758 | J13: =IF(T13 ="n",1000/(900+H13),"") ->  | K13: =IF($AK13>0,(VLOOKUP($B13,#REF!,6,FALSE)),"") ->  | L13: =IF($AK13>0,(VLOOKUP($B13,#REF!,7,FALSE)),"") ->  | T13: s | AB13: 4 | AH13: 62 | AI13: 59 | AK13: =(VLOOKUP($B13,#REF!,6,FALSE)) -> 
A14: Evans | B14: Severence | E14: C&C 25 | F14: 14755 | G14: 217 | H14: 232 | I14: 0.8952551477 | J14: =IF(T14 ="n",1000/(900+H14),"") ->  | K14: =IF($AK14>0,(VLOOKUP($B14,#REF!,6,FALSE)),"") ->  | L14: =IF($AK14>0,(VLOOKUP($B14,#REF!,7,FALSE)),"") ->  | T14: s | AB14: 5 | AH14: 59 | AI14: 12 | AK14: =(VLOOKUP($B14,#REF!,6,FALSE)) -> 
N15: =IFERROR(U15," ") ->  | P15: =IFERROR(N15-$Y$2,"") ->  | R15: =IFERROR(ROUND((1000/Y15)-900,0),"") ->  | T15: s | AB15: 6 | AH15: 56 | AI15: 58 | AK15: =(VLOOKUP($B15,#REF!,6,FALSE)) -> 
T16: s | AB16: 7 | AH16: 64 | AI16: 47 | AK16: =(VLOOKUP($B16,#REF!,6,FALSE)) -> 
T17: s | AB17: 9 | AK17: =(VLOOKUP($B17,#REF!,6,FALSE)) -> 
T18: n | AB18: 10 | AE18: 0 | AK18: =(VLOOKUP($B18,#REF!,6,FALSE)) -> 
A19: Arnold | B19: Sails Call | E19: Harbor 20 | F19: 322 | G19: 220 | H19: =IFERROR(G19+15,"") -> 235 | I19: =IF(T19 = "s",1000/(900+G19),"") ->  | J19: =IF(T19 ="n",1000/(900+H19),"") -> 0.8810572687 | K19: =IF($AK19>0,(VLOOKUP($B19,#REF!,6,FALSE)),"") ->  | L19: =IF($AK19>0,(VLOOKUP($B19,#REF!,7,FALSE)),"") ->  | M19: =IF(AK19>0,(K19+L19/60)-A$3," ") ->  | N19: =IFERROR(U19," ") ->  | P19: =IFERROR(N19-$Y$2,"") ->  | Q19: 4.144880399 | R19: =IFERROR(ROUND((1000/Y19)-900,0),"") ->  | T19: n | AB19: 11 | AC19: 2 | AD19: 4.144880399 | AE19: 4.144880399 | AK19: =(VLOOKUP($B19,#REF!,6,FALSE)) -> 
A20: Tunnell/Maloney | B20: Courageous | E20: Harbor 20 | F20: 278 | G20: 220 | H20: 235 | J20: 0.8810572687 | K20: =IF($AK20>0,(VLOOKUP($B20,#REF!,6,FALSE)),"") ->  | L20: =IF($AK20>0,(VLOOKUP($B20,#REF!,7,FALSE)),"") ->  | Q20: 1.016989858 | T20: n | AB20: 12 | AC20: 4 | AD20: 5.378360575 | AE20: 1.016989858 | AK20: =(VLOOKUP($B20,#REF!,6,FALSE)) -> 
A21: Hemler | B21: Stoic | E21: Harbor 20 | F21: 330 | G21: 220 | H21: 235 | J21: 0.8810572687 | K21: =IF($AK21>0,(VLOOKUP($B21,#REF!,6,FALSE)),"") ->  | L21: =IF($AK21>0,(VLOOKUP($B21,#REF!,7,FALSE)),"") ->  | Q21: 0.1174743025 | T21: n | AB21: 13 | AC21: 5 | AD21: 5.495834877 | AE21: 0.1174743025 | AK21: =(VLOOKUP($B21,#REF!,6,FALSE)) -> 
A22: Toone | B22: StressLess | E22: Harbor 20 | F22: 212 | G22: 220 | H22: 235 | J22: 0.8810572687 | K22: =IF($AK22>0,(VLOOKUP($B22,#REF!,6,FALSE)),"") ->  | L22: =IF($AK22>0,(VLOOKUP($B22,#REF!,7,FALSE)),"") ->  | M22: =IF(AK22>0,(K22+L22/60)-A$3," ") ->  | N22: =IFERROR(U22," ") ->  | O22: =IFERROR(V22," ") ->  | P22: =IFERROR(N22-$Y$2,"") ->  | Q22: 0.6167400881 | R22: =IFERROR(ROUND((1000/Y22)-900,0),"") ->  | T22: n | AB22: 14 | AC22: 7 | AD22: 6.332839283 | AE22: 0.6167400881 | AK22: =(VLOOKUP($B22,#REF!,6,FALSE)) -> 
A23: Miekina | B23: Synergy | E23: Harbor 20 | F23: 215 | G23: 220 | H23: 235 | J23: 0.8810572687 | K23: =IF($AK23>0,(VLOOKUP($B23,#REF!,6,FALSE)),"") ->  | L23: =IF($AK23>0,(VLOOKUP($B23,#REF!,7,FALSE)),"") ->  | Q23: 1.997063142 | T23: n | AB23: 15 | AC23: 8 | AD23: 8.329902425 | AE23: 1.997063142 | AK23: =(VLOOKUP($B23,#REF!,6,FALSE)) -> 
A24: Lingner | B24: Easy Goer | E24: Harbor 20 | F24: 337 | G24: 220 | H24: =IFERROR(G24+15,"") -> 235 | I24: =IF(T24 = "s",1000/(900+G24),"") ->  | J24: =IF(T24 ="n",1000/(900+H24),"") -> 0.8810572687 | K24: =IF($AK24>0,(VLOOKUP($B24,#REF!,6,FALSE)),"") ->  | L24: =IF($AK24>0,(VLOOKUP($B24,#REF!,7,FALSE)),"") ->  | T24: n | AB24: 16 | AK24: =(VLOOKUP($B24,#REF!,6,FALSE)) -> 
A25: Whitt | B25: Destiny | E25: Alerion 20 | F25: 6 | G25: 220 | H25: 235 | J25: 0.8810572687 | K25: =IF($AK25>0,(VLOOKUP($B25,#REF!,6,FALSE)),"") ->  | L25: =IF($AK25>0,(VLOOKUP($B25,#REF!,7,FALSE)),"") ->  | M25: =IF(AK25>0,(K25+L25/60)-A$3," ") ->  | N25: =IFERROR(U25," ") ->  | O25: =IFERROR(V25," ") ->  | P25: =IFERROR(N25-$Y$2,"") ->  | Q25: 0.2202643172 | R25: =IFERROR(ROUND((1000/Y25)-900,0),"") ->  | T25: n | AB25: 17 | AC25: 6 | AD25: 5.716099194 | AE25: 0.2202643172 | AK25: =(VLOOKUP($B25,#REF!,6,FALSE)) -> 
A26: Runyan | B26: Audacious | E26: Alerion 20 | F26: 51062 | G26: 220 | H26: =IFERROR(G26+15,"") -> 235 | I26: =IF(T26 = "s",1000/(900+G26),"") ->  | J26: =IF(T26 ="n",1000/(900+H26),"") -> 0.8810572687 | K26: =IF($AK26>0,(VLOOKUP($B26,#REF!,6,FALSE)),"") ->  | L26: =IF($AK26>0,(VLOOKUP($B26,#REF!,7,FALSE)),"") ->  | M26: =IF(AK26>0,(K26+L26/60)-A$3," ") ->  | N26: =IFERROR(U26," ") ->  | O26: =IFERROR(V26," ") ->  | P26: =IFERROR(N26-$Y$2,"") ->  | Q26: 8.405805113 | R26: =IFERROR(ROUND((1000/Y26)-900,0),"") ->  | T26: n | AB26: 18 | AC26: 10 | AD26: 16.89084222 | AE26: 8.405805113 | AK26: =(VLOOKUP($B26,#REF!,6,FALSE)) -> 
N27: =IFERROR(U27," ") ->  | P27: =IFERROR(N27-$Y$2,"") ->  | R27: =IFERROR(ROUND((1000/Y27)-900,0),"") ->  | T27: n | AB27: 19 | AK27: =(VLOOKUP($B27,#REF!,6,FALSE)) -> 
AB28: 20
A29: (In case race timer has issues, use clock time as backup and do the math)
A30: (1) Convert seconds to decimal equivalent - see reference sheet
A31: (2) Multiply time in minutes by circled TCF
A33: FLEET ONE | M33: RACE #

Sheet Fleet 3 and 4 Combo (hidden)
S1: 6 | Y1: Winner
Y2: =MIN(N10:N23) -> 0
A3: =#REF! ->  | B3: <-----Minutes after first start
A5: Blackwater Yacht Racing Association - Race Results Fleets 3 & 4 | Z5: Test
D6: Date: | E6: =#REF! ->  | F6: =#REF! ->  | K6: =CONCATENATE("RC:"," ",#REF!) ->  | Y6: new tcf = | Z6: should =
A7: =#REF! ->  | P7: Time | Q7: Time | R7: Approx | T7: Finish Calculations | Y7: Winner Adj Time | Z7: Winner Adj Time | AC7: # of Boats
G8: Handicap | I8: TCF | K8: Finish Time | M8: Calc(1) | N8: Adj.(2) | P8: Behind | Q8: Behind | R8: H'cap | T8: S for Spin | Y8: /observed | AC8: =MAX(AC10:AC23) -> 5
A9: Skipper | B9: Boat Name | C9: Initials | D9: Guest? | E9: Boat | F9: Sail # | G9: Spin* | H9: Non-Spin* | I9: Spin* | J9: Non-Spin* | K9: Min. | L9: Sec. | M9: Min.dd | N9: Time | O9: Place | P9: Winner | Q9: Boat Ahead | R9: to win | T9: N for non
A10: Gobble | B10: Always Something | E10: Hunter 23 | F10: 1256 | G10: 243 | H10: =IFERROR(G10+15,"") -> 258 | I10: =IF(T10 = "s",1000/(900+G10),"") ->  | J10: =IF(T10 ="n",1000/(900+H10),"") -> 0.8635578584 | K10: =IF($AK10>0,(VLOOKUP($B10,#REF!,6,FALSE)),"") ->  | L10: =IF($AK10>0,(VLOOKUP($B10,#REF!,7,FALSE)),"") ->  | M10: =IF(AK10>0,(K10+L10/60)-A$3," ") ->  | N10: =IFERROR(U10," ") ->  | P10: =IFERROR(N10-$Y$2,"") ->  | Q10: 0.5222810685 | R10: =IFERROR(ROUND((1000/Y10)-900,0),"") ->  | T10: n | U10: =IFERROR(IF(M10>0,IF(T10="s",M10*I10,0)+IF(T10="n",M10*J10,0)," "),"") ->  | V10: =IFERROR(RANK(N10,$N$10:$N$23,1),"") ->  | Y10: =IFERROR($Y$2/M10,"") ->  | Z10: =IFERROR(M10*Y10,"") ->  | AB10: 1 | AC10: 3 | AD10: 4.306183563 | AE10: 0.5222810685 | AH10: 55 | AI10: 39 | AK10: =(VLOOKUP($B10,#REF!,6,FALSE)) -> 
A11: Perdue | B11: Debra Ann | E11: O'Day 25 CB | F11: 13092 | G11: 238 | H11: =IFERROR(G11+15,"") -> 253 | I11: =IF(T11 = "s",1000/(900+G11),"") ->  | J11: =IF(T11 ="n",1000/(900+H11),"") -> 0.8673026886 | K11: =IF($AK11>0,(VLOOKUP($B11,#REF!,6,FALSE)),"") ->  | L11: =IF($AK11>0,(VLOOKUP($B11,#REF!,7,FALSE)),"") ->  | T11: n | U11: =IFERROR(IF(M11>0,IF(T11="s",M11*I11,0)+IF(T11="n",M11*J11,0)," "),"") ->  | Z11: =IFERROR(M11*Y11,"") ->  | AB11: 2 | AH11: 56 | AI11: 22 | AK11: =(VLOOKUP($B11,#REF!,6,FALSE)) -> 
A12: Hull | B12: Fools Game | E12: Pearson 26 | F12: 1183 | G12: 216 | H12: 231 | I12: =IF(T12 = "s",1000/(900+G12),"") ->  | J12: =IF(T12 ="n",1000/(900+H12),"") -> 0.884173298 | K12: =IF($AK12>0,(VLOOKUP($B12,#REF!,6,FALSE)),"") ->  | L12: =IF($AK12>0,(VLOOKUP($B12,#REF!,7,FALSE)),"") ->  | M12: =IF(AK12>0,(K12+L12/60)-A$3," ") ->  | N12: =IFERROR(U12," ") ->  | O12: =IFERROR(V12," ") ->  | P12: =IFERROR(N12-$Y$2,"") ->  | R12: =IFERROR(ROUND((1000/Y12)-900,0),"") ->  | T12: n | AB12: 3 | AC12: 1 | AD12: 0 | AH12: 54 | AI12: 9 | AK12: =(VLOOKUP($B12,#REF!,6,FALSE)) -> 
A13: Perdue | B13: Miss Virginia | E13: Hunter 23.5 | F13: 1309 | G13: 243 | H13: 258 | I13: =IF(T13 = "s",1000/(900+G13),"") ->  | J13: =IF(T13 ="n",1000/(900+H13),"") -> 0.8635578584 | K13: =IF($AK13>0,(VLOOKUP($B13,#REF!,6,FALSE)),"") ->  | L13: =IF($AK13>0,(VLOOKUP($B13,#REF!,7,FALSE)),"") ->  | Q13: 1.108232585 | T13: n | AB13: 4 | AC13: 4 | AD13: 5.414416148 | AE13: 1.108232585 | AH13: 62 | AI13: 59 | AK13: =(VLOOKUP($B13,#REF!,6,FALSE)) -> 
A14: Schraw | B14: Second Wind | E14: Ericson 23 | F14: 470 | G14: =241+3 -> 244 | H14: 259 | I14: =IF(T14 = "s",1000/(900+G14),"") ->  | J14: =IF(T14 ="n",1000/(900+H14),"") -> 0.8628127696 | K14: =IF($AK14>0,(VLOOKUP($B14,#REF!,6,FALSE)),"") ->  | L14: =IF($AK14>0,(VLOOKUP($B14,#REF!,7,FALSE)),"") ->  | T14: n | AB14: 5 | AH14: 59 | AI14: 12 | AK14: =(VLOOKUP($B14,#REF!,6,FALSE)) -> 
A15: Grogan | B15: Twinkle | E15: Hunter 23 | G15: 246 | H15: =IFERROR(G15+15,"") -> 261 | I15: =IF(T15 = "s",1000/(900+G15),"") ->  | J15: =IF(T15 ="n",1000/(900+H15),"") -> 0.8613264427 | K15: =IF($AK15>0,(VLOOKUP($B15,#REF!,6,FALSE)),"") ->  | L15: =IF($AK15>0,(VLOOKUP($B15,#REF!,7,FALSE)),"") ->  | N15: =IFERROR(U15," ") ->  | O15: =IFERROR(V15," ") ->  | P15: =IFERROR(N15-$Y$2,"") ->  | R15: =IFERROR(ROUND((1000/Y15)-900,0),"") ->  | T15: n | AB15: 6 | AH15: 56 | AI15: 58 | AK15: =(VLOOKUP($B15,#REF!,6,FALSE)) -> 
T16: n | AB16: 7 | AH16: 64 | AI16: 47 | AK16: =(VLOOKUP($B16,#REF!,6,FALSE)) -> 
A17: Oginz | B17: Alarming | E17: S-2 9.2 | F17: 505 | G17: =183+3+3 -> 189 | H17: 204 | J17: 0.9057971014 | K17: =IF($AK17>0,(VLOOKUP($B17,#REF!,6,FALSE)),"") ->  | L17: =IF($AK17>0,(VLOOKUP($B17,#REF!,7,FALSE)),"") ->  | M17: =IF(AK17>0,(K17+L17/60)-A$3," ") ->  | Q17: 1.934713774 | T17: n | AB17: 9 | AC17: 5 | AD17: 7.349129922 | AE17: 1.934713774 | AK17: =(VLOOKUP($B17,#REF!,6,FALSE)) -> 
A18: Johnson | B18: Felicite | E18: S-2 27 IB | F18: 13 | G18: =188+6 -> 194 | H18: 209 | J18: 0.9017132552 | K18: =IF($AK18>0,(VLOOKUP($B18,#REF!,6,FALSE)),"") ->  | L18: =IF($AK18>0,(VLOOKUP($B18,#REF!,7,FALSE)),"") ->  | T18: n | AB18: 10 | AK18: =(VLOOKUP($B18,#REF!,6,FALSE)) -> 
A19: DeMestro | B19: Little Wing | E19: Beneteau 29 | F19: 485 | G19: 168 | H19: 183 | J19: 0.9233610342 | K19: =IF($AK19>0,(VLOOKUP($B19,#REF!,6,FALSE)),"") ->  | L19: =IF($AK19>0,(VLOOKUP($B19,#REF!,7,FALSE)),"") ->  | Q19: 3.783902494 | T19: n | AB19: 11 | AC19: 2 | AD19: 3.783902494 | AE19: 3.783902494 | AK19: =(VLOOKUP($B19,#REF!,6,FALSE)) -> 
A20: Gearhart | B20: More Mischief | E20: Beneteau 285 | F20: 144 | G20: =193+6 -> 199 | H20: 214 | J20: 0.8976660682 | K20: =IF($AK20>0,(VLOOKUP($B20,#REF!,6,FALSE)),"") ->  | L20: =IF($AK20>0,(VLOOKUP($B20,#REF!,7,FALSE)),"") ->  | T20: n | AB20: 12 | AK20: =(VLOOKUP($B20,#REF!,6,FALSE)) -> 
N21: =IFERROR(U21," ") ->  | O21: =IFERROR(V21," ") ->  | P21: =IFERROR(N21-$Y$2,"") ->  | R21: =IFERROR(ROUND((1000/Y21)-900,0),"") ->  | T21: n | AB21: 13 | AK21: =(VLOOKUP($B21,#REF!,6,FALSE)) -> 
T22: n | AB22: 14 | AK22: =(VLOOKUP($B22,#REF!,6,FALSE)) -> 
T23: n | AB23: 15 | AK23: =(VLOOKUP($B23,#REF!,6,FALSE)) -> 
A24: Race Start Time | N24: FLEET THREE & FOUR | AB24: 16 | AK24: =(VLOOKUP($B24,#REF!,6,FALSE)) -> 
A25: (In case race timer has issues, use clock time as backup and do the math) | Q25: 0 | AB25: 17 | AE25: 0 | AK25: =(VLOOKUP($B25,#REF!,6,FALSE)) -> 
A26: (1) Convert seconds to decimal equivalent - see reference sheet | Q26: 0 | AB26: 18 | AE26: 0 | AK26: =(VLOOKUP($B26,#REF!,6,FALSE)) -> 
A27: (2) Multiply time in minutes by circled TCF | Q27: 0 | AB27: 19 | AE27: 0 | AK27: =(VLOOKUP($B27,#REF!,6,FALSE)) -> 
Q28: 0 | AE28: 0
A29: FLEET THREE | M29: RACE #
